DEPARTMENT_FAMILY,ENTITY,PAYMENT_DATE,EXPENSE_TYPE,EXPENSE_AREA,SUPPLIER,TRANSACTION_NUMBER,AMOUNT,DESCRIPTION
Ministry of Justice,MoJ HQ,01/04/16,245000-Grants in Aid to NDPBs,KY600-Access to Justice,THE PAROLE BOARD,11644,"1,400,000.00 ",Grant in Aid
Ministry of Justice,MoJ HQ,20/04/16,224000-Staff travel and other,QZ600-CPG Other,DEPARTMENT OF HEALTH,11705,"75,000.00 ",MoJ's contribution to the Government Finance Academy
Ministry of Justice,MoJ HQ,25/04/16,212000-Staff Cost - Wages & Salaries,NZ900-Finance & Corporate Services,HOME OFFICE,11724,"53,200.00 ",Charges payable for Fast Stream Economists staff
Ministry of Justice,MoJ HQ,04/05/16,245000-Grants in Aid to NDPBs,RZ500-Arms Length Bodies (JPG),CAFCASS,11732,"9,883,000.00 ",Grant in Aid to Children and Family Court Advisory and Support Service
Ministry of Justice,MoJ HQ,04/05/16,512000-Intangible GBV - Additions,NZ900-Finance & Corporate Services,HOME OFFICE IT,11733,"75,875.00 ",Criminal Justice System Efficiency-Crown In Court
Ministry of Justice,MoJ HQ,04/05/16,245000-Grants in Aid to NDPBs,KY600-Access to Justice,THE PAROLE BOARD,11734,"1,200,000.00 ",Grant in Aid
Ministry of Justice,MoJ HQ,05/05/16,265000-IT & Telecommunications,NZ900-Finance & Corporate Services,HOME OFFICE IT,11735,"169,958.81 ",Future IT Sourcing Maintenance and Transition costs
Ministry of Justice,MoJ HQ,05/05/16,265000-IT & Telecommunications,NZ900-Finance & Corporate Services,HOME OFFICE IT,11736,"123,039.62 ",Future IT Sourcing Maintenance and Transition costs
Ministry of Justice,MoJ HQ,06/05/16,245000-Grants in Aid to NDPBs,RC999-Criminal Justice Group - OMS,YOUTH JUSTICE BOARD,11749,"12,000,000.00 ",Grant in Aid
Ministry of Justice,MoJ HQ,10/05/16,222002-Other Property Costs,NZ406-Strategic Estates Feeder,CABINET OFFICE,11750,"40,000.00 ",MoJ contribution to the Cabinet Office for Government Security Zone Information Room (2014/15).
Ministry of Justice,MoJ HQ,10/05/16,263000-Other Contracted Out Services,NX900-MOJ Shared Services,CABINET OFFICE,11751,"283,500.00 ",Pension administration charge 2015-16
Ministry of Justice,MoJ HQ,10/05/16,223000-Other Expenditure,QZ600-CPG Other,CABINET OFFICE,11752,"97,435.00 ",Charges for the provision of the Office of the Parliamentary Counsel
Ministry of Justice,MoJ HQ,10/05/16,263000-Other Contracted Out Services,OZ501-HRD Feeder,CABINET OFFICE,11753,"25,348.40 ",HR Fast Stream programme costs
Ministry of Justice,MoJ HQ,10/05/16,212000-Staff Cost - Wages & Salaries,RZ500-Arms Length Bodies (JPG),CABINET OFFICE,11755,"27,619.52 ",Secondment from Cabinet Office: Salary Reimbursement 
Ministry of Justice,MoJ HQ,10/05/16,212000-Staff Cost - Wages & Salaries,RZ500-Arms Length Bodies (JPG),CABINET OFFICE,11756,"28,612.20 ",Secondment from Cabinet Office: Salary Reimbursement 
Ministry of Justice,MoJ HQ,10/05/16,212000-Staff Cost - Wages & Salaries,RZ500-Arms Length Bodies (JPG),CABINET OFFICE,11756,"14,306.10 ",Secondment from Cabinet Office: Salary Reimbursement 
Ministry of Justice,MoJ HQ,10/05/16,212000-Staff Cost - Wages & Salaries,RZ500-Arms Length Bodies (JPG),CABINET OFFICE,11757,"24,566.46 ",Secondment from Cabinet Office: Salary Reimbursement 
Ministry of Justice,MoJ HQ,10/05/16,212000-Staff Cost - Wages & Salaries,RZ500-Arms Length Bodies (JPG),CABINET OFFICE,11757,"12,283.23 ",Secondment from Cabinet Office: Salary Reimbursement 
Ministry of Justice,MoJ HQ,11/05/16,245000-Grants in Aid to NDPBs,RF999-JPG - DGs Office,OFFICE FOR LEGAL COMPLAINTS#KY18620002,11761,"1,625,000.00 ",Grant in Aid to Office for Legal Complaints
Ministry of Justice,MoJ HQ,12/05/16,245000-Grants in Aid to NDPBs,RC999-Criminal Justice Group - OMS,YOUTH JUSTICE BOARD,11772,"10,000,000.00 ",Grant in Aid
Ministry of Justice,MoJ HQ,13/05/16,512000-Intangible GBV - Additions,NZ900-Finance & Corporate Services,HOME OFFICE,11775,"22,600.00 ",Common Platform Programme-Transition Syncironisation
Ministry of Justice,MoJ HQ,16/05/16,245000-Grants in Aid to NDPBs,KY600-Access to Justice,JUDICIAL APPOIMTMENTS COMMISSION#KY14420014,11778,"1,000,000.00 ",Grant in Aid to Judicial Appointments Commission
Ministry of Justice,MoJ HQ,20/05/16,512000-Intangible GBV - Additions,NZ900-Finance & Corporate Services,HOME OFFICE,11784,"39,615.32 ",Common Platform Programme-Resulting
Ministry of Justice,MoJ HQ,23/05/16,222002-Other Property Costs,NZ406-Strategic Estates Feeder,HOME OFFICE,11786,"68,835.00 ",MoJ contribution to the Cabinet Office for Government Security Zone Information Room (2015/16).
Ministry of Justice,MoJ HQ,23/05/16,263000-Other Contracted Out Services,QT502-Office of the Accountant General,NATIONAL SAVINGS & INVESTMENTS,11789,"453,734.16 ",Provision of Court Funds Office operational service on behalf of MoJ
Ministry of Justice,MoJ HQ,28/04/16,263000-Other Contracted Out Services,RC999-Criminal Justice Group - OMS,G4S CARE & JUSTICE SERVICES,16527,"837,286.80 ",Rainsbrook - Operating secure training centre for young people in custody
Ministry of Justice,MoJ HQ,28/04/16,263000-Other Contracted Out Services,RC999-Criminal Justice Group - OMS,STC(MILTON KEYNES)LTD,16528,"1,456,133.26 ",Oakhill- Operating secure training centre for young people in custody
Ministry of Justice,MoJ HQ,05/05/16,222002-Other Property Costs,NZ406-Strategic Estates Feeder,CBRE LTD,101555,"37,933.79 ","Balancing Service Charge for Millbank, 5th Floor for the Periods 24/06/2007 - 31/12/2007 and 01/01/2013 - 31/12/2013."
Ministry of Justice,MoJ HQ,07/04/16,223000-Other Expenditure,NZ900-Finance & Corporate Services,IPSOS MORI (M&ORI LTD),2022164,"48,341.70 ",Milestone payment for the Evaluation of Adult Out of Court Disposals Pilot research work
Ministry of Justice,MoJ HQ,07/04/16,223000-Other Expenditure,NZ900-Finance & Corporate Services,IPSOS MORI (M&ORI LTD),2022164,"24,170.85 ",Milestone payment for the Evaluation of Adult Out of Court Disposals Pilot research work
Ministry of Justice,MoJ HQ,07/04/16,263000-Other Contracted Out Services,RC999-Criminal Justice Group - OMS,PROSPECTS SERVICES LTD,2022256,"213,394.00 ","Education to young people in Feltham Young Offenders Institute, provided by Prospects."
Ministry of Justice,MoJ HQ,07/04/16,265000-IT & Telecommunications,NZ900-Finance & Corporate Services,SOPRA STERIA LTD,2022288,"30,353.61 ",Charges for Police National Computer database management contract
Ministry of Justice,MoJ HQ,07/04/16,265000-IT & Telecommunications,RC999-Criminal Justice Group - OMS,XMA LTD,2022347,"31,608.16 ",Costs for installation of Virtual Campus at Parc
Ministry of Justice,MoJ HQ,11/04/16,265000-IT & Telecommunications,NZ900-Finance & Corporate Services,ATOS IT SERVICES UK LTD,2022354,"70,572.32 ",Licence fees and yearly service charges
Ministry of Justice,MoJ HQ,11/04/16,512000-Intangible GBV - Additions,RC999-Criminal Justice Group - OMS,YOUTH JUSTICE BOARD FOR ENGLAND & WALES,2022522,"79,899.24 ",Ministry of Justice-Asset Plus /LA International cost recovery invoices relating to technical services cost incurred 2015-16
Ministry of Justice,MoJ HQ,14/04/16,263000-Other Contracted Out Services,RC999-Criminal Justice Group - OMS,SERCO LTD,2022822,"150,694.00 ",Serco providing escorting services for young people in custody.
Ministry of Justice,MoJ HQ,15/04/16,512000-Intangible GBV - Additions,RC999-Criminal Justice Group - OMS,YOUTH JUSTICE BOARD FOR ENGLAND & WALES,2022900,"185,866.89 ",Ministry of Justice-Asset Plus /LA International cost recovery invoices relating to technical services cost incurred 2015-16
Ministry of Justice,MoJ HQ,18/04/16,263000-Other Contracted Out Services,RC999-Criminal Justice Group - OMS,G4S CARE & JUSTICE SERVICES (UK) LTD,2022954,"742,734.83 ",Medway - Operating secure training centre for young people in custody
Ministry of Justice,MoJ HQ,21/04/16,212001-Agency staff,LZ600-Transforming Justice,CAPITA BUSINESS SERVICES LTD,2023145,"144,993.10 ",Temporary agency staff
Ministry of Justice,MoJ HQ,21/04/16,212001-Agency staff,LZ600-Transforming Justice,CAPITA BUSINESS SERVICES LTD,2023145,"-289,986.00 ",Temporary agency staff
Ministry of Justice,MoJ HQ,28/04/16,512000-Intangible GBV - Additions,RC999-Criminal Justice Group - OMS,ALPINE RESOURCING LTD,2023549,"28,212.72 ",Ministry of Justice -Asset Plus Information Technology Service
Ministry of Justice,MoJ HQ,28/04/16,611000-Debtors <1 year - Other Debtors,WW000-Balance Sheet,DEPARTMENT FOR TRANSPORT,2023599,"45,430.21 ",Refund of a duplicate payment made to MoJ
Ministry of Justice,MoJ HQ,28/04/16,611000-Debtors <1 year - Other Debtors,WW000-Balance Sheet,DEPARTMENT FOR TRANSPORT,2023599,"45,427.77 ",Refund of a duplicate payment made to MoJ
Ministry of Justice,MoJ HQ,28/04/16,263000-Other Contracted Out Services,RC999-Criminal Justice Group - OMS,PROSPECTS SERVICES LTD,2023703,"261,111.60 ","Education for young people in custody at Feltham Young Offenders Institute, provided by Prospects."
Ministry of Justice,MoJ HQ,28/04/16,263000-Other Contracted Out Services,RC999-Criminal Justice Group - OMS,SERCO LTD,2023717,"170,106.94 ",Serco providing escorting services for young people in custody.
Ministry of Justice,MoJ HQ,28/04/16,263000-Other Contracted Out Services,RC999-Criminal Justice Group - OMS,THE MANCHESTER COLLEGE,2023731,"316,810.00 ","Education to young people in Wetherby Young Offenders Institute, provided by The Manchester College."
Ministry of Justice,MoJ HQ,28/04/16,263000-Other Contracted Out Services,RC999-Criminal Justice Group - OMS,THE MANCHESTER COLLEGE,2023731,"170,886.00 ","Education to young people in Cookham Wood Young Offenders Institute, provided by The Manchester College."
Ministry of Justice,MoJ HQ,28/04/16,263000-Other Contracted Out Services,RC999-Criminal Justice Group - OMS,THE MANCHESTER COLLEGE,2023731,"157,090.00 ","Education to young people in Werrington Young Offenders Institute, provided by The Manchester College."
Ministry of Justice,MoJ HQ,03/05/16,222003-CIS Labour TFM Estates,NZ406-Strategic Estates Feeder,AMEY,2023764,"64,047.96 ",CIS Labour TFM Cleaning for March 2016.
Ministry of Justice,MoJ HQ,03/05/16,222003-CIS Labour TFM Estates,NZ406-Strategic Estates Feeder,AMEY,2023764,"46,972.81 ",CIS Labour TFM Building Maintenance (Mechanical & Electrical Maintenance) for March 2016.
Ministry of Justice,MoJ HQ,03/05/16,222003-CIS Labour TFM Estates,NZ406-Strategic Estates Feeder,AMEY,2023764,"21,973.60 ",CIS Labour TFM Management for March 2016.
Ministry of Justice,MoJ HQ,03/05/16,222003-CIS Labour TFM Estates,NZ406-Strategic Estates Feeder,AMEY,2023764,"12,786.06 ",CIS Labour TFM Building Maintenance (Internal Repair & Maintenance) for March 2016.
Ministry of Justice,MoJ HQ,03/05/16,222003-CIS Labour TFM Estates,NZ406-Strategic Estates Feeder,AMEY,2023764,"8,570.59 ",CIS Labour TFM Management for March 2016.
Ministry of Justice,MoJ HQ,03/05/16,222003-CIS Labour TFM Estates,NZ406-Strategic Estates Feeder,AMEY,2023764,"8,345.81 ",CIS Labour TFM Building Maintenance (Mechanical & Electrical Maintenance) for March 2016..
Ministry of Justice,MoJ HQ,03/05/16,222003-CIS Labour TFM Estates,NZ406-Strategic Estates Feeder,AMEY,2023764,"7,545.29 ",CIS Labour TFM Management for March 2016.
Ministry of Justice,MoJ HQ,03/05/16,222003-CIS Labour TFM Estates,NZ406-Strategic Estates Feeder,AMEY,2023764,"5,247.02 ",CIS Labour TFM Waste Disposal for March 2016.
Ministry of Justice,MoJ HQ,03/05/16,222003-CIS Labour TFM Estates,NZ406-Strategic Estates Feeder,AMEY,2023764,"5,189.02 ",CIS Labour TFM Building Maintenance (Internal Repair & Maintenance) for March 2016.
Ministry of Justice,MoJ HQ,03/05/16,222003-CIS Labour TFM Estates,NZ406-Strategic Estates Feeder,AMEY,2023764,"1,135.41 ",CIS Labour TFM Cleaning for March 2016.
Ministry of Justice,MoJ HQ,03/05/16,222003-CIS Labour TFM Estates,NZ406-Strategic Estates Feeder,AMEY,2023764,508.35 ,CIS Labour TFM Grounds Maintenance for March 2016.
Ministry of Justice,MoJ HQ,03/05/16,222003-CIS Labour TFM Estates,NZ406-Strategic Estates Feeder,AMEY,2023764,360.89 ,CIS Labour TFM Pest and Vermin for March 2016.
Ministry of Justice,MoJ HQ,03/05/16,222003-CIS Labour TFM Estates,NZ406-Strategic Estates Feeder,AMEY,2023764,305.33 ,CIS Labour TFM Catering for March 2016.
Ministry of Justice,MoJ HQ,03/05/16,222003-CIS Labour TFM Estates,NZ406-Strategic Estates Feeder,AMEY,2023764,209.67 ,CIS Labour TFM Grounds Maintenance for March 2016.
Ministry of Justice,MoJ HQ,03/05/16,265000-IT & Telecommunications,NZ900-Finance & Corporate Services,ARK DATA CENTRES LTD,2023766,"35,000.00 ",Future IT Sourcing Transition costs
Ministry of Justice,MoJ HQ,03/05/16,265000-IT & Telecommunications,LZ600-Transforming Justice,ATOS IT SERVICES UK LTD,2023767,46.00 ,Provision of IT Peripherals and individually ordered software and equipment
Ministry of Justice,MoJ HQ,03/05/16,265000-IT & Telecommunications,NZ406-Strategic Estates Feeder,ATOS IT SERVICES UK LTD,2023767,46.00 ,Provision of IT Peripherals and individually ordered software and equipment
Ministry of Justice,MoJ HQ,03/05/16,265000-IT & Telecommunications,NZ406-Strategic Estates Feeder,ATOS IT SERVICES UK LTD,2023767,25.95 ,Provision of IT Peripherals and individually ordered software and equipment
Ministry of Justice,MoJ HQ,03/05/16,265000-IT & Telecommunications,NZ406-Strategic Estates Feeder,ATOS IT SERVICES UK LTD,2023767,23.24 ,Provision of IT Peripherals and individually ordered software and equipment
Ministry of Justice,MoJ HQ,03/05/16,265000-IT & Telecommunications,NZ406-Strategic Estates Feeder,ATOS IT SERVICES UK LTD,2023767,11.62 ,Provision of IT Peripherals and individually ordered software and equipment
Ministry of Justice,MoJ HQ,03/05/16,265000-IT & Telecommunications,NZ406-Strategic Estates Feeder,ATOS IT SERVICES UK LTD,2023767,9.09 ,Provision of IT Peripherals and individually ordered software and equipment
Ministry of Justice,MoJ HQ,03/05/16,265000-IT & Telecommunications,NZ406-Strategic Estates Feeder,ATOS IT SERVICES UK LTD,2023767,25.78 ,Provision of IT Peripherals and individually ordered software and equipment
Ministry of Justice,MoJ HQ,03/05/16,265000-IT & Telecommunications,NX900-MOJ Shared Services,ATOS IT SERVICES UK LTD,2023767,66.86 ,Provision of IT Peripherals and individually ordered software and equipment
Ministry of Justice,MoJ HQ,03/05/16,265000-IT & Telecommunications,NX900-MOJ Shared Services,ATOS IT SERVICES UK LTD,2023767,25.78 ,Provision of IT Peripherals and individually ordered software and equipment
Ministry of Justice,MoJ HQ,03/05/16,265000-IT & Telecommunications,NX900-MOJ Shared Services,ATOS IT SERVICES UK LTD,2023767,25.78 ,Provision of IT Peripherals and individually ordered software and equipment
Ministry of Justice,MoJ HQ,03/05/16,265000-IT & Telecommunications,NX900-MOJ Shared Services,ATOS IT SERVICES UK LTD,2023767,25.78 ,Provision of IT Peripherals and individually ordered software and equipment
Ministry of Justice,MoJ HQ,03/05/16,265000-IT & Telecommunications,NX900-MOJ Shared Services,ATOS IT SERVICES UK LTD,2023767,11.62 ,Provision of IT Peripherals and individually ordered software and equipment
Ministry of Justice,MoJ HQ,03/05/16,265000-IT & Telecommunications,NX900-MOJ Shared Services,ATOS IT SERVICES UK LTD,2023767,11.62 ,Provision of IT Peripherals and individually ordered software and equipment
Ministry of Justice,MoJ HQ,03/05/16,265000-IT & Telecommunications,NX900-MOJ Shared Services,ATOS IT SERVICES UK LTD,2023767,11.62 ,Provision of IT Peripherals and individually ordered software and equipment
Ministry of Justice,MoJ HQ,03/05/16,265000-IT & Telecommunications,OZ501-HRD Feeder,ATOS IT SERVICES UK LTD,2023767,46.00 ,Provision of IT Peripherals and individually ordered software and equipment
Ministry of Justice,MoJ HQ,03/05/16,265000-IT & Telecommunications,OZ501-HRD Feeder,ATOS IT SERVICES UK LTD,2023767,"1,413.10 ",Provision of IT Peripherals and individually ordered software and equipment
Ministry of Justice,MoJ HQ,03/05/16,265000-IT & Telecommunications,OZ501-HRD Feeder,ATOS IT SERVICES UK LTD,2023767,618.00 ,Provision of IT Peripherals and individually ordered software and equipment
Ministry of Justice,MoJ HQ,03/05/16,265000-IT & Telecommunications,OZ501-HRD Feeder,ATOS IT SERVICES UK LTD,2023767,168.02 ,Provision of IT Peripherals and individually ordered software and equipment
Ministry of Justice,MoJ HQ,03/05/16,265000-IT & Telecommunications,OZ501-HRD Feeder,ATOS IT SERVICES UK LTD,2023767,167.92 ,Provision of IT Peripherals and individually ordered software and equipment
Ministry of Justice,MoJ HQ,03/05/16,265000-IT & Telecommunications,OZ501-HRD Feeder,ATOS IT SERVICES UK LTD,2023767,128.25 ,Provision of IT Peripherals and individually ordered software and equipment
Ministry of Justice,MoJ HQ,03/05/16,265000-IT & Telecommunications,OZ501-HRD Feeder,ATOS IT SERVICES UK LTD,2023767,102.60 ,Provision of IT Peripherals and individually ordered software and equipment
Ministry of Justice,MoJ HQ,03/05/16,265000-IT & Telecommunications,OZ501-HRD Feeder,ATOS IT SERVICES UK LTD,2023767,83.96 ,Provision of IT Peripherals and individually ordered software and equipment
Ministry of Justice,MoJ HQ,03/05/16,265000-IT & Telecommunications,OZ501-HRD Feeder,ATOS IT SERVICES UK LTD,2023767,81.44 ,Provision of IT Peripherals and individually ordered software and equipment
Ministry of Justice,MoJ HQ,03/05/16,265000-IT & Telecommunications,OZ501-HRD Feeder,ATOS IT SERVICES UK LTD,2023767,51.30 ,Provision of IT Peripherals and individually ordered software and equipment
Ministry of Justice,MoJ HQ,03/05/16,265000-IT & Telecommunications,OZ501-HRD Feeder,ATOS IT SERVICES UK LTD,2023767,51.30 ,Provision of IT Peripherals and individually ordered software and equipment
Ministry of Justice,MoJ HQ,03/05/16,265000-IT & Telecommunications,OZ501-HRD Feeder,ATOS IT SERVICES UK LTD,2023767,21.84 ,Provision of IT Peripherals and individually ordered software and equipment
Ministry of Justice,MoJ HQ,03/05/16,265000-IT & Telecommunications,NZ900-Finance & Corporate Services,ATOS IT SERVICES UK LTD,2023767,257.80 ,Provision of IT Peripherals and individually ordered software and equipment
Ministry of Justice,MoJ HQ,03/05/16,265000-IT & Telecommunications,NZ900-Finance & Corporate Services,ATOS IT SERVICES UK LTD,2023767,257.80 ,Provision of IT Peripherals and individually ordered software and equipment
Ministry of Justice,MoJ HQ,03/05/16,265000-IT & Telecommunications,NZ900-Finance & Corporate Services,ATOS IT SERVICES UK LTD,2023767,25.78 ,Provision of IT Peripherals and individually ordered software and equipment
Ministry of Justice,MoJ HQ,03/05/16,265000-IT & Telecommunications,NZ900-Finance & Corporate Services,ATOS IT SERVICES UK LTD,2023767,"26,889.00 ",ICT Other 
Ministry of Justice,MoJ HQ,03/05/16,265000-IT & Telecommunications,NZ900-Finance & Corporate Services,ATOS IT SERVICES UK LTD,2023767,78.26 ,Provision of IT Peripherals and individually ordered software and equipment
Ministry of Justice,MoJ HQ,03/05/16,265000-IT & Telecommunications,NZ900-Finance & Corporate Services,ATOS IT SERVICES UK LTD,2023767,403.86 ,Provision of IT Peripherals and individually ordered software and equipment
Ministry of Justice,MoJ HQ,03/05/16,265000-IT & Telecommunications,NZ900-Finance & Corporate Services,ATOS IT SERVICES UK LTD,2023767,364.46 ,Provision of IT Peripherals and individually ordered software and equipment
Ministry of Justice,MoJ HQ,03/05/16,265000-IT & Telecommunications,NZ900-Finance & Corporate Services,ATOS IT SERVICES UK LTD,2023767,258.33 ,Provision of IT Peripherals and individually ordered software and equipment
Ministry of Justice,MoJ HQ,03/05/16,265000-IT & Telecommunications,NZ900-Finance & Corporate Services,ATOS IT SERVICES UK LTD,2023767,258.33 ,Provision of IT Peripherals and individually ordered software and equipment
Ministry of Justice,MoJ HQ,03/05/16,265000-IT & Telecommunications,NZ900-Finance & Corporate Services,ATOS IT SERVICES UK LTD,2023767,258.33 ,Provision of IT Peripherals and individually ordered software and equipment
Ministry of Justice,MoJ HQ,03/05/16,265000-IT & Telecommunications,NZ900-Finance & Corporate Services,ATOS IT SERVICES UK LTD,2023767,258.33 ,Provision of IT Peripherals and individually ordered software and equipment
Ministry of Justice,MoJ HQ,03/05/16,265000-IT & Telecommunications,NZ900-Finance & Corporate Services,ATOS IT SERVICES UK LTD,2023767,258.33 ,Provision of IT Peripherals and individually ordered software and equipment
Ministry of Justice,MoJ HQ,03/05/16,265000-IT & Telecommunications,NZ900-Finance & Corporate Services,ATOS IT SERVICES UK LTD,2023767,116.08 ,Provision of IT Peripherals and individually ordered software and equipment
Ministry of Justice,MoJ HQ,03/05/16,265000-IT & Telecommunications,NZ900-Finance & Corporate Services,ATOS IT SERVICES UK LTD,2023767,103.12 ,Provision of IT Peripherals and individually ordered software and equipment
Ministry of Justice,MoJ HQ,03/05/16,265000-IT & Telecommunications,NZ900-Finance & Corporate Services,ATOS IT SERVICES UK LTD,2023767,86.52 ,Provision of IT Peripherals and individually ordered software and equipment
Ministry of Justice,MoJ HQ,03/05/16,265000-IT & Telecommunications,NZ900-Finance & Corporate Services,ATOS IT SERVICES UK LTD,2023767,82.78 ,Provision of IT Peripherals and individually ordered software and equipment
Ministry of Justice,MoJ HQ,03/05/16,265000-IT & Telecommunications,NZ900-Finance & Corporate Services,ATOS IT SERVICES UK LTD,2023767,78.26 ,Provision of IT Peripherals and individually ordered software and equipment
Ministry of Justice,MoJ HQ,03/05/16,265000-IT & Telecommunications,NZ900-Finance & Corporate Services,ATOS IT SERVICES UK LTD,2023767,78.26 ,Provision of IT Peripherals and individually ordered software and equipment
Ministry of Justice,MoJ HQ,03/05/16,265000-IT & Telecommunications,NZ900-Finance & Corporate Services,ATOS IT SERVICES UK LTD,2023767,78.26 ,Provision of IT Peripherals and individually ordered software and equipment
Ministry of Justice,MoJ HQ,03/05/16,265000-IT & Telecommunications,NZ900-Finance & Corporate Services,ATOS IT SERVICES UK LTD,2023767,78.26 ,Provision of IT Peripherals and individually ordered software and equipment
Ministry of Justice,MoJ HQ,03/05/16,265000-IT & Telecommunications,NZ900-Finance & Corporate Services,ATOS IT SERVICES UK LTD,2023767,78.26 ,Provision of IT Peripherals and individually ordered software and equipment
Ministry of Justice,MoJ HQ,03/05/16,265000-IT & Telecommunications,NZ900-Finance & Corporate Services,ATOS IT SERVICES UK LTD,2023767,51.56 ,Provision of IT Peripherals and individually ordered software and equipment
Ministry of Justice,MoJ HQ,03/05/16,265000-IT & Telecommunications,NZ900-Finance & Corporate Services,ATOS IT SERVICES UK LTD,2023767,46.00 ,Provision of IT Peripherals and individually ordered software and equipment
Ministry of Justice,MoJ HQ,03/05/16,265000-IT & Telecommunications,NZ900-Finance & Corporate Services,ATOS IT SERVICES UK LTD,2023767,45.76 ,Provision of IT Peripherals and individually ordered software and equipment
Ministry of Justice,MoJ HQ,03/05/16,265000-IT & Telecommunications,NZ900-Finance & Corporate Services,ATOS IT SERVICES UK LTD,2023767,37.50 ,Provision of IT Peripherals and individually ordered software and equipment
Ministry of Justice,MoJ HQ,03/05/16,265000-IT & Telecommunications,NZ900-Finance & Corporate Services,ATOS IT SERVICES UK LTD,2023767,31.31 ,Provision of IT Peripherals and individually ordered software and equipment
Ministry of Justice,MoJ HQ,03/05/16,265000-IT & Telecommunications,NZ900-Finance & Corporate Services,ATOS IT SERVICES UK LTD,2023767,30.27 ,Provision of IT Peripherals and individually ordered software and equipment
Ministry of Justice,MoJ HQ,03/05/16,265000-IT & Telecommunications,NZ900-Finance & Corporate Services,ATOS IT SERVICES UK LTD,2023767,28.84 ,Provision of IT Peripherals and individually ordered software and equipment
Ministry of Justice,MoJ HQ,03/05/16,265000-IT & Telecommunications,NZ900-Finance & Corporate Services,ATOS IT SERVICES UK LTD,2023767,25.95 ,Provision of IT Peripherals and individually ordered software and equipment
Ministry of Justice,MoJ HQ,03/05/16,265000-IT & Telecommunications,NZ900-Finance & Corporate Services,ATOS IT SERVICES UK LTD,2023767,25.78 ,Provision of IT Peripherals and individually ordered software and equipment
Ministry of Justice,MoJ HQ,03/05/16,265000-IT & Telecommunications,NZ900-Finance & Corporate Services,ATOS IT SERVICES UK LTD,2023767,25.78 ,Provision of IT Peripherals and individually ordered software and equipment
Ministry of Justice,MoJ HQ,03/05/16,265000-IT & Telecommunications,NZ900-Finance & Corporate Services,ATOS IT SERVICES UK LTD,2023767,20.50 ,Provision of IT Peripherals and individually ordered software and equipment
Ministry of Justice,MoJ HQ,03/05/16,265000-IT & Telecommunications,NZ900-Finance & Corporate Services,ATOS IT SERVICES UK LTD,2023767,14.48 ,Provision of IT Peripherals and individually ordered software and equipment
Ministry of Justice,MoJ HQ,03/05/16,265000-IT & Telecommunications,NZ900-Finance & Corporate Services,ATOS IT SERVICES UK LTD,2023767,12.98 ,Provision of IT Peripherals and individually ordered software and equipment
Ministry of Justice,MoJ HQ,03/05/16,265000-IT & Telecommunications,NZ900-Finance & Corporate Services,ATOS IT SERVICES UK LTD,2023767,8.63 ,Provision of IT Peripherals and individually ordered software and equipment
Ministry of Justice,MoJ HQ,03/05/16,265000-IT & Telecommunications,NZ900-Finance & Corporate Services,ATOS IT SERVICES UK LTD,2023767,111.45 ,Provision of IT Peripherals and individually ordered software and equipment
Ministry of Justice,MoJ HQ,03/05/16,265000-IT & Telecommunications,NZ900-Finance & Corporate Services,ATOS IT SERVICES UK LTD,2023767,111.45 ,Provision of IT Peripherals and individually ordered software and equipment
Ministry of Justice,MoJ HQ,03/05/16,265000-IT & Telecommunications,NZ900-Finance & Corporate Services,ATOS IT SERVICES UK LTD,2023767,46.00 ,Provision of IT Peripherals and individually ordered software and equipment
Ministry of Justice,MoJ HQ,03/05/16,265000-IT & Telecommunications,NZ900-Finance & Corporate Services,ATOS IT SERVICES UK LTD,2023767,10.00 ,Provision of IT Peripherals and individually ordered software and equipment
Ministry of Justice,MoJ HQ,03/05/16,265000-IT & Telecommunications,NZ900-Finance & Corporate Services,ATOS IT SERVICES UK LTD,2023767,6.93 ,Provision of IT Peripherals and individually ordered software and equipment
Ministry of Justice,MoJ HQ,03/05/16,265000-IT & Telecommunications,NZ900-Finance & Corporate Services,ATOS IT SERVICES UK LTD,2023767,5.25 ,Provision of IT Peripherals and individually ordered software and equipment
Ministry of Justice,MoJ HQ,03/05/16,265000-IT & Telecommunications,NZ900-Finance & Corporate Services,ATOS IT SERVICES UK LTD,2023767,154.68 ,Provision of IT Peripherals and individually ordered software and equipment
Ministry of Justice,MoJ HQ,03/05/16,265000-IT & Telecommunications,NZ900-Finance & Corporate Services,ATOS IT SERVICES UK LTD,2023767,51.56 ,Provision of IT Peripherals and individually ordered software and equipment
Ministry of Justice,MoJ HQ,03/05/16,265000-IT & Telecommunications,NZ900-Finance & Corporate Services,ATOS IT SERVICES UK LTD,2023767,25.78 ,Provision of IT Peripherals and individually ordered software and equipment
Ministry of Justice,MoJ HQ,03/05/16,265000-IT & Telecommunications,NZ900-Finance & Corporate Services,ATOS IT SERVICES UK LTD,2023767,25.78 ,Provision of IT Peripherals and individually ordered software and equipment
Ministry of Justice,MoJ HQ,03/05/16,265000-IT & Telecommunications,NZ900-Finance & Corporate Services,ATOS IT SERVICES UK LTD,2023767,25.78 ,Provision of IT Peripherals and individually ordered software and equipment
Ministry of Justice,MoJ HQ,03/05/16,265000-IT & Telecommunications,NZ900-Finance & Corporate Services,ATOS IT SERVICES UK LTD,2023767,25.78 ,Provision of IT Peripherals and individually ordered software and equipment
Ministry of Justice,MoJ HQ,03/05/16,265000-IT & Telecommunications,NZ900-Finance & Corporate Services,ATOS IT SERVICES UK LTD,2023767,66.86 ,Provision of IT Peripherals and individually ordered software and equipment
Ministry of Justice,MoJ HQ,03/05/16,265000-IT & Telecommunications,NZ900-Finance & Corporate Services,ATOS IT SERVICES UK LTD,2023767,25.23 ,Provision of IT Peripherals and individually ordered software and equipment
Ministry of Justice,MoJ HQ,03/05/16,265000-IT & Telecommunications,NZ900-Finance & Corporate Services,ATOS IT SERVICES UK LTD,2023767,"2,781.00 ",Charges related to OPG Conference Phone devices
Ministry of Justice,MoJ HQ,03/05/16,265000-IT & Telecommunications,NZ900-Finance & Corporate Services,ATOS IT SERVICES UK LTD,2023767,401.16 ,Provision of IT Peripherals and individually ordered software and equipment
Ministry of Justice,MoJ HQ,03/05/16,265000-IT & Telecommunications,NZ900-Finance & Corporate Services,ATOS IT SERVICES UK LTD,2023767,305.09 ,Provision of IT Peripherals and individually ordered software and equipment
Ministry of Justice,MoJ HQ,03/05/16,265000-IT & Telecommunications,NZ900-Finance & Corporate Services,ATOS IT SERVICES UK LTD,2023767,206.24 ,Provision of IT Peripherals and individually ordered software and equipment
Ministry of Justice,MoJ HQ,03/05/16,265000-IT & Telecommunications,NZ900-Finance & Corporate Services,ATOS IT SERVICES UK LTD,2023767,92.00 ,Provision of IT Peripherals and individually ordered software and equipment
Ministry of Justice,MoJ HQ,03/05/16,265000-IT & Telecommunications,NZ900-Finance & Corporate Services,ATOS IT SERVICES UK LTD,2023767,77.34 ,Provision of IT Peripherals and individually ordered software and equipment
Ministry of Justice,MoJ HQ,03/05/16,265000-IT & Telecommunications,NZ900-Finance & Corporate Services,ATOS IT SERVICES UK LTD,2023767,67.31 ,Provision of IT Peripherals and individually ordered software and equipment
Ministry of Justice,MoJ HQ,03/05/16,265000-IT & Telecommunications,NZ900-Finance & Corporate Services,ATOS IT SERVICES UK LTD,2023767,56.92 ,Provision of IT Peripherals and individually ordered software and equipment
Ministry of Justice,MoJ HQ,03/05/16,265000-IT & Telecommunications,NZ900-Finance & Corporate Services,ATOS IT SERVICES UK LTD,2023767,46.22 ,Provision of IT Peripherals and individually ordered software and equipment
Ministry of Justice,MoJ HQ,03/05/16,265000-IT & Telecommunications,NZ900-Finance & Corporate Services,ATOS IT SERVICES UK LTD,2023767,46.00 ,Provision of IT Peripherals and individually ordered software and equipment
Ministry of Justice,MoJ HQ,03/05/16,265000-IT & Telecommunications,NZ900-Finance & Corporate Services,ATOS IT SERVICES UK LTD,2023767,46.00 ,Provision of IT Peripherals and individually ordered software and equipment
Ministry of Justice,MoJ HQ,03/05/16,265000-IT & Telecommunications,NZ900-Finance & Corporate Services,ATOS IT SERVICES UK LTD,2023767,46.00 ,Provision of IT Peripherals and individually ordered software and equipment
Ministry of Justice,MoJ HQ,03/05/16,265000-IT & Telecommunications,NZ900-Finance & Corporate Services,ATOS IT SERVICES UK LTD,2023767,25.78 ,Provision of IT Peripherals and individually ordered software and equipment
Ministry of Justice,MoJ HQ,03/05/16,265000-IT & Telecommunications,NZ900-Finance & Corporate Services,ATOS IT SERVICES UK LTD,2023767,25.78 ,Provision of IT Peripherals and individually ordered software and equipment
Ministry of Justice,MoJ HQ,03/05/16,265000-IT & Telecommunications,NZ900-Finance & Corporate Services,ATOS IT SERVICES UK LTD,2023767,25.78 ,Provision of IT Peripherals and individually ordered software and equipment
Ministry of Justice,MoJ HQ,03/05/16,265000-IT & Telecommunications,NZ900-Finance & Corporate Services,ATOS IT SERVICES UK LTD,2023767,25.78 ,Provision of IT Peripherals and individually ordered software and equipment
Ministry of Justice,MoJ HQ,03/05/16,265000-IT & Telecommunications,NZ900-Finance & Corporate Services,ATOS IT SERVICES UK LTD,2023767,25.78 ,Provision of IT Peripherals and individually ordered software and equipment
Ministry of Justice,MoJ HQ,03/05/16,265000-IT & Telecommunications,NZ900-Finance & Corporate Services,ATOS IT SERVICES UK LTD,2023767,25.78 ,Provision of IT Peripherals and individually ordered software and equipment
Ministry of Justice,MoJ HQ,03/05/16,265000-IT & Telecommunications,NZ900-Finance & Corporate Services,ATOS IT SERVICES UK LTD,2023767,25.78 ,Provision of IT Peripherals and individually ordered software and equipment
Ministry of Justice,MoJ HQ,03/05/16,265000-IT & Telecommunications,NZ900-Finance & Corporate Services,ATOS IT SERVICES UK LTD,2023767,25.78 ,Provision of IT Peripherals and individually ordered software and equipment
Ministry of Justice,MoJ HQ,03/05/16,265000-IT & Telecommunications,NZ900-Finance & Corporate Services,ATOS IT SERVICES UK LTD,2023767,25.78 ,Provision of IT Peripherals and individually ordered software and equipment
Ministry of Justice,MoJ HQ,03/05/16,265000-IT & Telecommunications,NZ900-Finance & Corporate Services,ATOS IT SERVICES UK LTD,2023767,25.78 ,Provision of IT Peripherals and individually ordered software and equipment
Ministry of Justice,MoJ HQ,03/05/16,265000-IT & Telecommunications,NZ900-Finance & Corporate Services,ATOS IT SERVICES UK LTD,2023767,25.78 ,Provision of IT Peripherals and individually ordered software and equipment
Ministry of Justice,MoJ HQ,03/05/16,265000-IT & Telecommunications,NZ900-Finance & Corporate Services,ATOS IT SERVICES UK LTD,2023767,25.78 ,Provision of IT Peripherals and individually ordered software and equipment
Ministry of Justice,MoJ HQ,03/05/16,265000-IT & Telecommunications,NZ900-Finance & Corporate Services,ATOS IT SERVICES UK LTD,2023767,25.78 ,Provision of IT Peripherals and individually ordered software and equipment
Ministry of Justice,MoJ HQ,03/05/16,265000-IT & Telecommunications,NZ900-Finance & Corporate Services,ATOS IT SERVICES UK LTD,2023767,25.78 ,Provision of IT Peripherals and individually ordered software and equipment
Ministry of Justice,MoJ HQ,03/05/16,265000-IT & Telecommunications,NZ900-Finance & Corporate Services,ATOS IT SERVICES UK LTD,2023767,25.78 ,Provision of IT Peripherals and individually ordered software and equipment
Ministry of Justice,MoJ HQ,03/05/16,265000-IT & Telecommunications,NZ900-Finance & Corporate Services,ATOS IT SERVICES UK LTD,2023767,25.78 ,Provision of IT Peripherals and individually ordered software and equipment
Ministry of Justice,MoJ HQ,03/05/16,265000-IT & Telecommunications,NZ900-Finance & Corporate Services,ATOS IT SERVICES UK LTD,2023767,25.78 ,Provision of IT Peripherals and individually ordered software and equipment
Ministry of Justice,MoJ HQ,03/05/16,265000-IT & Telecommunications,NZ900-Finance & Corporate Services,ATOS IT SERVICES UK LTD,2023767,25.78 ,Provision of IT Peripherals and individually ordered software and equipment
Ministry of Justice,MoJ HQ,03/05/16,265000-IT & Telecommunications,NZ900-Finance & Corporate Services,ATOS IT SERVICES UK LTD,2023767,25.78 ,Provision of IT Peripherals and individually ordered software and equipment
Ministry of Justice,MoJ HQ,03/05/16,265000-IT & Telecommunications,NZ900-Finance & Corporate Services,ATOS IT SERVICES UK LTD,2023767,11.62 ,Provision of IT Peripherals and individually ordered software and equipment
Ministry of Justice,MoJ HQ,03/05/16,265000-IT & Telecommunications,NZ900-Finance & Corporate Services,ATOS IT SERVICES UK LTD,2023767,11.62 ,Provision of IT Peripherals and individually ordered software and equipment
Ministry of Justice,MoJ HQ,03/05/16,265000-IT & Telecommunications,NZ900-Finance & Corporate Services,ATOS IT SERVICES UK LTD,2023767,11.62 ,Provision of IT Peripherals and individually ordered software and equipment
Ministry of Justice,MoJ HQ,03/05/16,265000-IT & Telecommunications,NZ900-Finance & Corporate Services,ATOS IT SERVICES UK LTD,2023767,11.62 ,Provision of IT Peripherals and individually ordered software and equipment
Ministry of Justice,MoJ HQ,03/05/16,265000-IT & Telecommunications,NZ900-Finance & Corporate Services,ATOS IT SERVICES UK LTD,2023767,8.63 ,Provision of IT Peripherals and individually ordered software and equipment
Ministry of Justice,MoJ HQ,03/05/16,265000-IT & Telecommunications,NZ900-Finance & Corporate Services,ATOS IT SERVICES UK LTD,2023767,"1,398.30 ",Cost of Site Engineer's assistance in relation to a powerdown
Ministry of Justice,MoJ HQ,03/05/16,265000-IT & Telecommunications,NZ900-Finance & Corporate Services,ATOS IT SERVICES UK LTD,2023767,"1,398.30 ",Cost of Site Engineer's assistance in relation to a powerdown
Ministry of Justice,MoJ HQ,03/05/16,265000-IT & Telecommunications,NZ900-Finance & Corporate Services,ATOS IT SERVICES UK LTD,2023767,"1,398.30 ",Cost of Site Engineer's assistance in relation to a powerdown
Ministry of Justice,MoJ HQ,03/05/16,265000-IT & Telecommunications,NZ900-Finance & Corporate Services,ATOS IT SERVICES UK LTD,2023767,"1,398.30 ",Cost of Site Engineer's assistance in relation to a powerdown
Ministry of Justice,MoJ HQ,03/05/16,265000-IT & Telecommunications,NZ900-Finance & Corporate Services,ATOS IT SERVICES UK LTD,2023767,"1,398.30 ",Cost of Site Engineer's assistance in relation to a powerdown
Ministry of Justice,MoJ HQ,03/05/16,265000-IT & Telecommunications,NZ900-Finance & Corporate Services,ATOS IT SERVICES UK LTD,2023767,"1,398.30 ",Cost of Site Engineer's assistance in relation to a powerdown
Ministry of Justice,MoJ HQ,03/05/16,265000-IT & Telecommunications,NZ900-Finance & Corporate Services,ATOS IT SERVICES UK LTD,2023767,"1,398.30 ",Cost of Site Engineer's assistance in relation to a powerdown
Ministry of Justice,MoJ HQ,03/05/16,265000-IT & Telecommunications,NZ900-Finance & Corporate Services,ATOS IT SERVICES UK LTD,2023767,"1,398.30 ",Cost of Site Engineer's assistance in relation to a powerdown
Ministry of Justice,MoJ HQ,03/05/16,265000-IT & Telecommunications,NZ900-Finance & Corporate Services,ATOS IT SERVICES UK LTD,2023767,"1,398.30 ",Cost of Site Engineer's assistance in relation to a powerdown
Ministry of Justice,MoJ HQ,03/05/16,265000-IT & Telecommunications,NZ900-Finance & Corporate Services,ATOS IT SERVICES UK LTD,2023767,"1,398.30 ",Cost of Site Engineer's assistance in relation to a powerdown
Ministry of Justice,MoJ HQ,03/05/16,265000-IT & Telecommunications,NZ900-Finance & Corporate Services,ATOS IT SERVICES UK LTD,2023767,"1,398.30 ",Cost of Site Engineer's assistance in relation to a powerdown
Ministry of Justice,MoJ HQ,03/05/16,265000-IT & Telecommunications,NZ900-Finance & Corporate Services,ATOS IT SERVICES UK LTD,2023767,"1,398.30 ",Cost of Site Engineer's assistance in relation to a powerdown
Ministry of Justice,MoJ HQ,03/05/16,265000-IT & Telecommunications,NZ900-Finance & Corporate Services,ATOS IT SERVICES UK LTD,2023767,"1,398.30 ",Cost of Site Engineer's assistance in relation to a powerdown
Ministry of Justice,MoJ HQ,03/05/16,265000-IT & Telecommunications,NZ900-Finance & Corporate Services,ATOS IT SERVICES UK LTD,2023767,"1,398.30 ",Cost of Site Engineer's assistance in relation to a powerdown
Ministry of Justice,MoJ HQ,03/05/16,265000-IT & Telecommunications,NZ900-Finance & Corporate Services,ATOS IT SERVICES UK LTD,2023767,"1,398.30 ",Cost of Site Engineer's assistance in relation to a powerdown
Ministry of Justice,MoJ HQ,03/05/16,265000-IT & Telecommunications,NZ900-Finance & Corporate Services,ATOS IT SERVICES UK LTD,2023767,"1,398.30 ",Cost of Site Engineer's assistance in relation to a powerdown
Ministry of Justice,MoJ HQ,03/05/16,265000-IT & Telecommunications,NZ900-Finance & Corporate Services,ATOS IT SERVICES UK LTD,2023767,859.37 ,Provision of IT Peripherals and individually ordered software and equipment
Ministry of Justice,MoJ HQ,03/05/16,265000-IT & Telecommunications,NZ900-Finance & Corporate Services,ATOS IT SERVICES UK LTD,2023767,859.37 ,Provision of IT Peripherals and individually ordered software and equipment
Ministry of Justice,MoJ HQ,03/05/16,265000-IT & Telecommunications,NZ900-Finance & Corporate Services,ATOS IT SERVICES UK LTD,2023767,859.37 ,Provision of IT Peripherals and individually ordered software and equipment
Ministry of Justice,MoJ HQ,03/05/16,265000-IT & Telecommunications,NZ900-Finance & Corporate Services,ATOS IT SERVICES UK LTD,2023767,859.37 ,Provision of IT Peripherals and individually ordered software and equipment
Ministry of Justice,MoJ HQ,03/05/16,265000-IT & Telecommunications,NZ900-Finance & Corporate Services,ATOS IT SERVICES UK LTD,2023767,859.37 ,Provision of IT Peripherals and individually ordered software and equipment
Ministry of Justice,MoJ HQ,03/05/16,265000-IT & Telecommunications,NZ900-Finance & Corporate Services,ATOS IT SERVICES UK LTD,2023767,859.37 ,Provision of IT Peripherals and individually ordered software and equipment
Ministry of Justice,MoJ HQ,03/05/16,265000-IT & Telecommunications,NZ900-Finance & Corporate Services,ATOS IT SERVICES UK LTD,2023767,859.37 ,Provision of IT Peripherals and individually ordered software and equipment
Ministry of Justice,MoJ HQ,03/05/16,265000-IT & Telecommunications,NZ900-Finance & Corporate Services,ATOS IT SERVICES UK LTD,2023767,859.37 ,Provision of IT Peripherals and individually ordered software and equipment
Ministry of Justice,MoJ HQ,03/05/16,265000-IT & Telecommunications,NZ900-Finance & Corporate Services,ATOS IT SERVICES UK LTD,2023767,859.37 ,Provision of IT Peripherals and individually ordered software and equipment
Ministry of Justice,MoJ HQ,03/05/16,265000-IT & Telecommunications,NZ900-Finance & Corporate Services,ATOS IT SERVICES UK LTD,2023767,859.37 ,Provision of IT Peripherals and individually ordered software and equipment
Ministry of Justice,MoJ HQ,03/05/16,265000-IT & Telecommunications,NZ900-Finance & Corporate Services,ATOS IT SERVICES UK LTD,2023767,859.37 ,Provision of IT Peripherals and individually ordered software and equipment
Ministry of Justice,MoJ HQ,03/05/16,265000-IT & Telecommunications,NZ900-Finance & Corporate Services,ATOS IT SERVICES UK LTD,2023767,859.37 ,Provision of IT Peripherals and individually ordered software and equipment
Ministry of Justice,MoJ HQ,03/05/16,265000-IT & Telecommunications,NZ900-Finance & Corporate Services,ATOS IT SERVICES UK LTD,2023767,859.37 ,Provision of IT Peripherals and individually ordered software and equipment
Ministry of Justice,MoJ HQ,03/05/16,265000-IT & Telecommunications,NZ900-Finance & Corporate Services,ATOS IT SERVICES UK LTD,2023767,859.37 ,Provision of IT Peripherals and individually ordered software and equipment
Ministry of Justice,MoJ HQ,03/05/16,265000-IT & Telecommunications,NZ900-Finance & Corporate Services,ATOS IT SERVICES UK LTD,2023767,859.37 ,Provision of IT Peripherals and individually ordered software and equipment
Ministry of Justice,MoJ HQ,03/05/16,265000-IT & Telecommunications,NZ900-Finance & Corporate Services,ATOS IT SERVICES UK LTD,2023767,859.37 ,Provision of IT Peripherals and individually ordered software and equipment
Ministry of Justice,MoJ HQ,03/05/16,265000-IT & Telecommunications,NZ900-Finance & Corporate Services,ATOS IT SERVICES UK LTD,2023767,859.37 ,Provision of IT Peripherals and individually ordered software and equipment
Ministry of Justice,MoJ HQ,03/05/16,265000-IT & Telecommunications,NZ900-Finance & Corporate Services,ATOS IT SERVICES UK LTD,2023767,859.37 ,Provision of IT Peripherals and individually ordered software and equipment
Ministry of Justice,MoJ HQ,03/05/16,265000-IT & Telecommunications,NZ900-Finance & Corporate Services,ATOS IT SERVICES UK LTD,2023767,859.37 ,Provision of IT Peripherals and individually ordered software and equipment
Ministry of Justice,MoJ HQ,03/05/16,265000-IT & Telecommunications,NZ900-Finance & Corporate Services,ATOS IT SERVICES UK LTD,2023767,859.37 ,Provision of IT Peripherals and individually ordered software and equipment
Ministry of Justice,MoJ HQ,03/05/16,265000-IT & Telecommunications,NZ900-Finance & Corporate Services,ATOS IT SERVICES UK LTD,2023767,859.37 ,Provision of IT Peripherals and individually ordered software and equipment
Ministry of Justice,MoJ HQ,03/05/16,265000-IT & Telecommunications,NZ900-Finance & Corporate Services,ATOS IT SERVICES UK LTD,2023767,859.37 ,Provision of IT Peripherals and individually ordered software and equipment
Ministry of Justice,MoJ HQ,03/05/16,265000-IT & Telecommunications,NZ900-Finance & Corporate Services,ATOS IT SERVICES UK LTD,2023767,859.37 ,Provision of IT Peripherals and individually ordered software and equipment
Ministry of Justice,MoJ HQ,03/05/16,265000-IT & Telecommunications,NZ900-Finance & Corporate Services,ATOS IT SERVICES UK LTD,2023767,859.37 ,Provision of IT Peripherals and individually ordered software and equipment
Ministry of Justice,MoJ HQ,03/05/16,265000-IT & Telecommunications,NZ900-Finance & Corporate Services,ATOS IT SERVICES UK LTD,2023767,859.37 ,Provision of IT Peripherals and individually ordered software and equipment
Ministry of Justice,MoJ HQ,03/05/16,265000-IT & Telecommunications,NZ900-Finance & Corporate Services,ATOS IT SERVICES UK LTD,2023767,859.37 ,Provision of IT Peripherals and individually ordered software and equipment
Ministry of Justice,MoJ HQ,03/05/16,265000-IT & Telecommunications,NZ900-Finance & Corporate Services,ATOS IT SERVICES UK LTD,2023767,859.37 ,Provision of IT Peripherals and individually ordered software and equipment
Ministry of Justice,MoJ HQ,03/05/16,265000-IT & Telecommunications,NZ900-Finance & Corporate Services,ATOS IT SERVICES UK LTD,2023767,859.37 ,Provision of IT Peripherals and individually ordered software and equipment
Ministry of Justice,MoJ HQ,03/05/16,265000-IT & Telecommunications,NZ900-Finance & Corporate Services,ATOS IT SERVICES UK LTD,2023767,859.37 ,Provision of IT Peripherals and individually ordered software and equipment
Ministry of Justice,MoJ HQ,03/05/16,265000-IT & Telecommunications,NZ900-Finance & Corporate Services,ATOS IT SERVICES UK LTD,2023767,164.00 ,Provision of IT Peripherals and individually ordered software and equipment
Ministry of Justice,MoJ HQ,03/05/16,265000-IT & Telecommunications,NZ900-Finance & Corporate Services,ATOS IT SERVICES UK LTD,2023767,164.00 ,Provision of IT Peripherals and individually ordered software and equipment
Ministry of Justice,MoJ HQ,03/05/16,265000-IT & Telecommunications,NZ900-Finance & Corporate Services,ATOS IT SERVICES UK LTD,2023767,164.00 ,Provision of IT Peripherals and individually ordered software and equipment
Ministry of Justice,MoJ HQ,03/05/16,265000-IT & Telecommunications,NZ900-Finance & Corporate Services,ATOS IT SERVICES UK LTD,2023767,164.00 ,Provision of IT Peripherals and individually ordered software and equipment
Ministry of Justice,MoJ HQ,03/05/16,265000-IT & Telecommunications,NZ900-Finance & Corporate Services,ATOS IT SERVICES UK LTD,2023767,164.00 ,Provision of IT Peripherals and individually ordered software and equipment
Ministry of Justice,MoJ HQ,03/05/16,265000-IT & Telecommunications,NZ900-Finance & Corporate Services,ATOS IT SERVICES UK LTD,2023767,164.00 ,Provision of IT Peripherals and individually ordered software and equipment
Ministry of Justice,MoJ HQ,03/05/16,265000-IT & Telecommunications,NZ900-Finance & Corporate Services,ATOS IT SERVICES UK LTD,2023767,164.00 ,Provision of IT Peripherals and individually ordered software and equipment
Ministry of Justice,MoJ HQ,03/05/16,265000-IT & Telecommunications,NZ900-Finance & Corporate Services,ATOS IT SERVICES UK LTD,2023767,164.00 ,Provision of IT Peripherals and individually ordered software and equipment
Ministry of Justice,MoJ HQ,03/05/16,265000-IT & Telecommunications,NZ900-Finance & Corporate Services,ATOS IT SERVICES UK LTD,2023767,164.00 ,Provision of IT Peripherals and individually ordered software and equipment
Ministry of Justice,MoJ HQ,03/05/16,265000-IT & Telecommunications,NZ900-Finance & Corporate Services,ATOS IT SERVICES UK LTD,2023767,164.00 ,Provision of IT Peripherals and individually ordered software and equipment
Ministry of Justice,MoJ HQ,03/05/16,265000-IT & Telecommunications,NZ900-Finance & Corporate Services,ATOS IT SERVICES UK LTD,2023767,164.00 ,Provision of IT Peripherals and individually ordered software and equipment
Ministry of Justice,MoJ HQ,03/05/16,265000-IT & Telecommunications,NZ900-Finance & Corporate Services,ATOS IT SERVICES UK LTD,2023767,164.00 ,Provision of IT Peripherals and individually ordered software and equipment
Ministry of Justice,MoJ HQ,03/05/16,265000-IT & Telecommunications,NZ900-Finance & Corporate Services,ATOS IT SERVICES UK LTD,2023767,164.00 ,Provision of IT Peripherals and individually ordered software and equipment
Ministry of Justice,MoJ HQ,03/05/16,265000-IT & Telecommunications,NZ900-Finance & Corporate Services,ATOS IT SERVICES UK LTD,2023767,164.00 ,Provision of IT Peripherals and individually ordered software and equipment
Ministry of Justice,MoJ HQ,03/05/16,265000-IT & Telecommunications,NZ900-Finance & Corporate Services,ATOS IT SERVICES UK LTD,2023767,164.00 ,Provision of IT Peripherals and individually ordered software and equipment
Ministry of Justice,MoJ HQ,03/05/16,265000-IT & Telecommunications,NZ900-Finance & Corporate Services,ATOS IT SERVICES UK LTD,2023767,164.00 ,Provision of IT Peripherals and individually ordered software and equipment
Ministry of Justice,MoJ HQ,03/05/16,265000-IT & Telecommunications,NZ900-Finance & Corporate Services,ATOS IT SERVICES UK LTD,2023767,164.00 ,Provision of IT Peripherals and individually ordered software and equipment
Ministry of Justice,MoJ HQ,03/05/16,265000-IT & Telecommunications,NZ900-Finance & Corporate Services,ATOS IT SERVICES UK LTD,2023767,164.00 ,Provision of IT Peripherals and individually ordered software and equipment
Ministry of Justice,MoJ HQ,03/05/16,265000-IT & Telecommunications,NZ900-Finance & Corporate Services,ATOS IT SERVICES UK LTD,2023767,164.00 ,Provision of IT Peripherals and individually ordered software and equipment
Ministry of Justice,MoJ HQ,03/05/16,265000-IT & Telecommunications,NZ900-Finance & Corporate Services,ATOS IT SERVICES UK LTD,2023767,46.05 ,Provision of IT Peripherals and individually ordered software and equipment
Ministry of Justice,MoJ HQ,03/05/16,265000-IT & Telecommunications,QZ500-Arms Length Bodies (CPG),ATOS IT SERVICES UK LTD,2023767,"1,641.28 ",Provision of IT peripherals and individually ordered software and equipment
Ministry of Justice,MoJ HQ,03/05/16,265000-IT & Telecommunications,RB999-JPG - CJRD,ATOS IT SERVICES UK LTD,2023767,25.23 ,Provision of IT Peripherals and individually ordered software and equipment
Ministry of Justice,MoJ HQ,03/05/16,265000-IT & Telecommunications,RC999-Criminal Justice Group - OMS,ATOS IT SERVICES UK LTD,2023767,11.62 ,Provision of IT Peripherals and individually ordered software and equipment
Ministry of Justice,MoJ HQ,03/05/16,265000-IT & Telecommunications,RC999-Criminal Justice Group - OMS,ATOS IT SERVICES UK LTD,2023767,10.09 ,Provision of IT Peripherals and individually ordered software and equipment
Ministry of Justice,MoJ HQ,03/05/16,265000-IT & Telecommunications,RF999-JPG - DGs Office,ATOS IT SERVICES UK LTD,2023767,66.86 ,Provision of IT Peripherals and individually ordered software and equipment
Ministry of Justice,MoJ HQ,03/05/16,265000-IT & Telecommunications,RJ999-JPG - International,ATOS IT SERVICES UK LTD,2023767,334.30 ,Provision of IT Peripherals and individually ordered software and equipment
Ministry of Justice,MoJ HQ,03/05/16,265000-IT & Telecommunications,RJ999-JPG - International,ATOS IT SERVICES UK LTD,2023767,25.78 ,Provision of IT Peripherals and individually ordered software and equipment
Ministry of Justice,MoJ HQ,03/05/16,265000-IT & Telecommunications,RJ999-JPG - International,ATOS IT SERVICES UK LTD,2023767,14.13 ,Provision of IT Peripherals and individually ordered software and equipment
Ministry of Justice,MoJ HQ,03/05/16,265000-IT & Telecommunications,RZ500-Arms Length Bodies (JPG),ATOS IT SERVICES UK LTD,2023767,25.78 ,International dialling access for staff member
Ministry of Justice,MoJ HQ,03/05/16,265000-IT & Telecommunications,RZ500-Arms Length Bodies (JPG),ATOS IT SERVICES UK LTD,2023767,25.78 ,International dialling access for staff member
Ministry of Justice,MoJ HQ,03/05/16,265000-IT & Telecommunications,RZ500-Arms Length Bodies (JPG),ATOS IT SERVICES UK LTD,2023767,25.78 ,International dialling access for staff member
Ministry of Justice,MoJ HQ,03/05/16,265000-IT & Telecommunications,RG999-CFLAP Accumulator,ATOS IT SERVICES UK LTD,2023767,25.23 ,Provision of IT Peripherals and individually ordered software and equipment
Ministry of Justice,MoJ HQ,03/05/16,265000-IT & Telecommunications,MF600-Directorate of Judicial Offices,ATOS IT SERVICES UK LTD,2023767,612.26 ,Provision of IT Peripherals and individually ordered software and equipment
Ministry of Justice,MoJ HQ,03/05/16,265000-IT & Telecommunications,MF600-Directorate of Judicial Offices,ATOS IT SERVICES UK LTD,2023767,82.78 ,Provision of IT Peripherals and individually ordered software and equipment
Ministry of Justice,MoJ HQ,03/05/16,265000-IT & Telecommunications,MF600-Directorate of Judicial Offices,ATOS IT SERVICES UK LTD,2023767,28.84 ,Provision of IT Peripherals and individually ordered software and equipment
Ministry of Justice,MoJ HQ,03/05/16,265000-IT & Telecommunications,MF600-Directorate of Judicial Offices,ATOS IT SERVICES UK LTD,2023767,25.78 ,Provision of IT Peripherals and individually ordered software and equipment
Ministry of Justice,MoJ HQ,03/05/16,265000-IT & Telecommunications,MF600-Directorate of Judicial Offices,ATOS IT SERVICES UK LTD,2023767,25.78 ,Provision of IT Peripherals and individually ordered software and equipment
Ministry of Justice,MoJ HQ,03/05/16,265000-IT & Telecommunications,MF600-Directorate of Judicial Offices,ATOS IT SERVICES UK LTD,2023767,12.98 ,Provision of IT Peripherals and individually ordered software and equipment
Ministry of Justice,MoJ HQ,03/05/16,265000-IT & Telecommunications,MF600-Directorate of Judicial Offices,ATOS IT SERVICES UK LTD,2023767,11.62 ,Provision of IT Peripherals and individually ordered software and equipment
Ministry of Justice,MoJ HQ,03/05/16,265000-IT & Telecommunications,MF600-Directorate of Judicial Offices,ATOS IT SERVICES UK LTD,2023767,11.62 ,Provision of IT Peripherals and individually ordered software and equipment
Ministry of Justice,MoJ HQ,03/05/16,265000-IT & Telecommunications,MF600-Directorate of Judicial Offices,ATOS IT SERVICES UK LTD,2023767,11.17 ,Provision of IT Peripherals and individually ordered software and equipment
Ministry of Justice,MoJ HQ,03/05/16,265000-IT & Telecommunications,MF600-Directorate of Judicial Offices,ATOS IT SERVICES UK LTD,2023767,11.17 ,Provision of IT Peripherals and individually ordered software and equipment
Ministry of Justice,MoJ HQ,03/05/16,265000-IT & Telecommunications,MF600-Directorate of Judicial Offices,ATOS IT SERVICES UK LTD,2023767,257.50 ,Provision of IT Peripherals and individually ordered software and equipment
Ministry of Justice,MoJ HQ,03/05/16,265000-IT & Telecommunications,"RD999-CJG - DGs Office, BDSU, Inspectorates & Ombudsman",ATOS IT SERVICES UK LTD,2023767,364.46 ,Provision of IT Peripherals and individually ordered software and equipment
Ministry of Justice,MoJ HQ,03/05/16,265000-IT & Telecommunications,"RD999-CJG - DGs Office, BDSU, Inspectorates & Ombudsman",ATOS IT SERVICES UK LTD,2023767,267.44 ,Provision of IT Peripherals and individually ordered software and equipment
Ministry of Justice,MoJ HQ,03/05/16,265000-IT & Telecommunications,"RD999-CJG - DGs Office, BDSU, Inspectorates & Ombudsman",ATOS IT SERVICES UK LTD,2023767,258.33 ,Provision of IT Peripherals and individually ordered software and equipment
Ministry of Justice,MoJ HQ,03/05/16,265000-IT & Telecommunications,"RD999-CJG - DGs Office, BDSU, Inspectorates & Ombudsman",ATOS IT SERVICES UK LTD,2023767,258.33 ,Provision of IT Peripherals and individually ordered software and equipment
Ministry of Justice,MoJ HQ,03/05/16,265000-IT & Telecommunications,"RD999-CJG - DGs Office, BDSU, Inspectorates & Ombudsman",ATOS IT SERVICES UK LTD,2023767,98.47 ,Provision of IT Peripherals and individually ordered software and equipment
Ministry of Justice,MoJ HQ,03/05/16,265000-IT & Telecommunications,"RD999-CJG - DGs Office, BDSU, Inspectorates & Ombudsman",ATOS IT SERVICES UK LTD,2023767,89.44 ,Provision of IT Peripherals and individually ordered software and equipment
Ministry of Justice,MoJ HQ,03/05/16,265000-IT & Telecommunications,"RD999-CJG - DGs Office, BDSU, Inspectorates & Ombudsman",ATOS IT SERVICES UK LTD,2023767,82.78 ,Provision of IT Peripherals and individually ordered software and equipment
Ministry of Justice,MoJ HQ,03/05/16,265000-IT & Telecommunications,"RD999-CJG - DGs Office, BDSU, Inspectorates & Ombudsman",ATOS IT SERVICES UK LTD,2023767,46.00 ,Provision of IT Peripherals and individually ordered software and equipment
Ministry of Justice,MoJ HQ,03/05/16,265000-IT & Telecommunications,"RD999-CJG - DGs Office, BDSU, Inspectorates & Ombudsman",ATOS IT SERVICES UK LTD,2023767,46.00 ,Provision of IT Peripherals and individually ordered software and equipment
Ministry of Justice,MoJ HQ,03/05/16,265000-IT & Telecommunications,"RD999-CJG - DGs Office, BDSU, Inspectorates & Ombudsman",ATOS IT SERVICES UK LTD,2023767,46.00 ,Provision of IT Peripherals and individually ordered software and equipment
Ministry of Justice,MoJ HQ,03/05/16,265000-IT & Telecommunications,"RD999-CJG - DGs Office, BDSU, Inspectorates & Ombudsman",ATOS IT SERVICES UK LTD,2023767,43.43 ,Provision of IT Peripherals and individually ordered software and equipment
Ministry of Justice,MoJ HQ,03/05/16,265000-IT & Telecommunications,"RD999-CJG - DGs Office, BDSU, Inspectorates & Ombudsman",ATOS IT SERVICES UK LTD,2023767,43.43 ,Provision of IT Peripherals and individually ordered software and equipment
Ministry of Justice,MoJ HQ,03/05/16,265000-IT & Telecommunications,"RD999-CJG - DGs Office, BDSU, Inspectorates & Ombudsman",ATOS IT SERVICES UK LTD,2023767,43.43 ,Provision of IT Peripherals and individually ordered software and equipment
Ministry of Justice,MoJ HQ,03/05/16,265000-IT & Telecommunications,"RD999-CJG - DGs Office, BDSU, Inspectorates & Ombudsman",ATOS IT SERVICES UK LTD,2023767,43.43 ,Provision of IT Peripherals and individually ordered software and equipment
Ministry of Justice,MoJ HQ,03/05/16,265000-IT & Telecommunications,"RD999-CJG - DGs Office, BDSU, Inspectorates & Ombudsman",ATOS IT SERVICES UK LTD,2023767,43.43 ,Provision of IT Peripherals and individually ordered software and equipment
Ministry of Justice,MoJ HQ,03/05/16,265000-IT & Telecommunications,"RD999-CJG - DGs Office, BDSU, Inspectorates & Ombudsman",ATOS IT SERVICES UK LTD,2023767,43.43 ,Provision of IT Peripherals and individually ordered software and equipment
Ministry of Justice,MoJ HQ,03/05/16,265000-IT & Telecommunications,"RD999-CJG - DGs Office, BDSU, Inspectorates & Ombudsman",ATOS IT SERVICES UK LTD,2023767,43.43 ,Provision of IT Peripherals and individually ordered software and equipment
Ministry of Justice,MoJ HQ,03/05/16,265000-IT & Telecommunications,"RD999-CJG - DGs Office, BDSU, Inspectorates & Ombudsman",ATOS IT SERVICES UK LTD,2023767,43.43 ,Provision of IT Peripherals and individually ordered software and equipment
Ministry of Justice,MoJ HQ,03/05/16,265000-IT & Telecommunications,"RD999-CJG - DGs Office, BDSU, Inspectorates & Ombudsman",ATOS IT SERVICES UK LTD,2023767,43.43 ,Provision of IT Peripherals and individually ordered software and equipment
Ministry of Justice,MoJ HQ,03/05/16,265000-IT & Telecommunications,"RD999-CJG - DGs Office, BDSU, Inspectorates & Ombudsman",ATOS IT SERVICES UK LTD,2023767,43.43 ,Provision of IT Peripherals and individually ordered software and equipment
Ministry of Justice,MoJ HQ,03/05/16,265000-IT & Telecommunications,"RD999-CJG - DGs Office, BDSU, Inspectorates & Ombudsman",ATOS IT SERVICES UK LTD,2023767,43.43 ,Provision of IT Peripherals and individually ordered software and equipment
Ministry of Justice,MoJ HQ,03/05/16,265000-IT & Telecommunications,QZ600-CPG Other,ATOS IT SERVICES UK LTD,2023767,25.78 ,Provision of IT Peripherals and individually ordered software and equipment
Ministry of Justice,MoJ HQ,03/05/16,265000-IT & Telecommunications,QZ600-CPG Other,ATOS IT SERVICES UK LTD,2023767,25.78 ,Provision of IT Peripherals and individually ordered software and equipment
Ministry of Justice,MoJ HQ,03/05/16,265000-IT & Telecommunications,RC999-Criminal Justice Group - OMS,ATOS IT SERVICES UK LTD,2023767,25.78 ,Provision of IT Peripherals and individually ordered software and equipment
Ministry of Justice,MoJ HQ,03/05/16,265000-IT & Telecommunications,"RD999-CJG - DGs Office, BDSU, Inspectorates & Ombudsman",ATOS IT SERVICES UK LTD,2023767,19.27 ,Provision of IT Peripherals and individually ordered software and equipment
Ministry of Justice,MoJ HQ,03/05/16,265000-IT & Telecommunications,RB999-JPG - CJRD,ATOS IT SERVICES UK LTD,2023767,11.62 ,Provision of IT Peripherals and individually ordered software and equipment
Ministry of Justice,MoJ HQ,03/05/16,265000-IT & Telecommunications,"RD999-CJG - DGs Office, BDSU, Inspectorates & Ombudsman",ATOS IT SERVICES UK LTD,2023767,11.16 ,Provision of IT Peripherals and individually ordered software and equipment
Ministry of Justice,MoJ HQ,03/05/16,265000-IT & Telecommunications,"RD999-CJG - DGs Office, BDSU, Inspectorates & Ombudsman",ATOS IT SERVICES UK LTD,2023767,11.16 ,Provision of IT Peripherals and individually ordered software and equipment
Ministry of Justice,MoJ HQ,03/05/16,265000-IT & Telecommunications,"RD999-CJG - DGs Office, BDSU, Inspectorates & Ombudsman",ATOS IT SERVICES UK LTD,2023767,11.16 ,Provision of IT Peripherals and individually ordered software and equipment
Ministry of Justice,MoJ HQ,03/05/16,265000-IT & Telecommunications,"RD999-CJG - DGs Office, BDSU, Inspectorates & Ombudsman",ATOS IT SERVICES UK LTD,2023767,11.16 ,Provision of IT Peripherals and individually ordered software and equipment
Ministry of Justice,MoJ HQ,03/05/16,265000-IT & Telecommunications,"RD999-CJG - DGs Office, BDSU, Inspectorates & Ombudsman",ATOS IT SERVICES UK LTD,2023767,11.16 ,Provision of IT Peripherals and individually ordered software and equipment
Ministry of Justice,MoJ HQ,03/05/16,265000-IT & Telecommunications,"RD999-CJG - DGs Office, BDSU, Inspectorates & Ombudsman",ATOS IT SERVICES UK LTD,2023767,11.16 ,Provision of IT Peripherals and individually ordered software and equipment
Ministry of Justice,MoJ HQ,03/05/16,265000-IT & Telecommunications,"RD999-CJG - DGs Office, BDSU, Inspectorates & Ombudsman",ATOS IT SERVICES UK LTD,2023767,11.16 ,Provision of IT Peripherals and individually ordered software and equipment
Ministry of Justice,MoJ HQ,03/05/16,265000-IT & Telecommunications,"RD999-CJG - DGs Office, BDSU, Inspectorates & Ombudsman",ATOS IT SERVICES UK LTD,2023767,11.16 ,Provision of IT Peripherals and individually ordered software and equipment
Ministry of Justice,MoJ HQ,03/05/16,265000-IT & Telecommunications,"RD999-CJG - DGs Office, BDSU, Inspectorates & Ombudsman",ATOS IT SERVICES UK LTD,2023767,11.16 ,Provision of IT Peripherals and individually ordered software and equipment
Ministry of Justice,MoJ HQ,03/05/16,265000-IT & Telecommunications,"RD999-CJG - DGs Office, BDSU, Inspectorates & Ombudsman",ATOS IT SERVICES UK LTD,2023767,11.16 ,Provision of IT Peripherals and individually ordered software and equipment
Ministry of Justice,MoJ HQ,03/05/16,265000-IT & Telecommunications,"RD999-CJG - DGs Office, BDSU, Inspectorates & Ombudsman",ATOS IT SERVICES UK LTD,2023767,11.16 ,Provision of IT Peripherals and individually ordered software and equipment
Ministry of Justice,MoJ HQ,03/05/16,265000-IT & Telecommunications,"RD999-CJG - DGs Office, BDSU, Inspectorates & Ombudsman",ATOS IT SERVICES UK LTD,2023767,6.38 ,Provision of IT Peripherals and individually ordered software and equipment
Ministry of Justice,MoJ HQ,03/05/16,265000-IT & Telecommunications,"RD999-CJG - DGs Office, BDSU, Inspectorates & Ombudsman",ATOS IT SERVICES UK LTD,2023767,6.38 ,Provision of IT Peripherals and individually ordered software and equipment
Ministry of Justice,MoJ HQ,03/05/16,265000-IT & Telecommunications,"RD999-CJG - DGs Office, BDSU, Inspectorates & Ombudsman",ATOS IT SERVICES UK LTD,2023767,6.38 ,Provision of IT Peripherals and individually ordered software and equipment
Ministry of Justice,MoJ HQ,03/05/16,265000-IT & Telecommunications,"RD999-CJG - DGs Office, BDSU, Inspectorates & Ombudsman",ATOS IT SERVICES UK LTD,2023767,6.38 ,Provision of IT Peripherals and individually ordered software and equipment
Ministry of Justice,MoJ HQ,03/05/16,265000-IT & Telecommunications,"RD999-CJG - DGs Office, BDSU, Inspectorates & Ombudsman",ATOS IT SERVICES UK LTD,2023767,6.38 ,Provision of IT Peripherals and individually ordered software and equipment
Ministry of Justice,MoJ HQ,03/05/16,265000-IT & Telecommunications,"RD999-CJG - DGs Office, BDSU, Inspectorates & Ombudsman",ATOS IT SERVICES UK LTD,2023767,6.38 ,Provision of IT Peripherals and individually ordered software and equipment
Ministry of Justice,MoJ HQ,03/05/16,265000-IT & Telecommunications,"RD999-CJG - DGs Office, BDSU, Inspectorates & Ombudsman",ATOS IT SERVICES UK LTD,2023767,6.38 ,Provision of IT Peripherals and individually ordered software and equipment
Ministry of Justice,MoJ HQ,03/05/16,265000-IT & Telecommunications,"RD999-CJG - DGs Office, BDSU, Inspectorates & Ombudsman",ATOS IT SERVICES UK LTD,2023767,6.38 ,Provision of IT Peripherals and individually ordered software and equipment
Ministry of Justice,MoJ HQ,03/05/16,265000-IT & Telecommunications,"RD999-CJG - DGs Office, BDSU, Inspectorates & Ombudsman",ATOS IT SERVICES UK LTD,2023767,6.38 ,Provision of IT Peripherals and individually ordered software and equipment
Ministry of Justice,MoJ HQ,03/05/16,265000-IT & Telecommunications,"RD999-CJG - DGs Office, BDSU, Inspectorates & Ombudsman",ATOS IT SERVICES UK LTD,2023767,6.38 ,Provision of IT Peripherals and individually ordered software and equipment
Ministry of Justice,MoJ HQ,03/05/16,265000-IT & Telecommunications,NZ900-Finance & Corporate Services,ATOS IT SERVICES UK LTD,2023768,"269,810.49 ", Future Offender Management National Infrastructure run and maintain service charges
Ministry of Justice,MoJ HQ,03/05/16,265000-IT & Telecommunications,NZ900-Finance & Corporate Services,ATOS IT SERVICES UK LTD,2023768,"22,413.40 ",The Way We Work project
Ministry of Justice,MoJ HQ,03/05/16,265000-IT & Telecommunications,NZ900-Finance & Corporate Services,CACI LTD,2023777,"58,179.80 ",Youth Justice Board Contract Costs for Hosting support
Ministry of Justice,MoJ HQ,03/05/16,265000-IT & Telecommunications,NZ900-Finance & Corporate Services,CAPITA BUSINESS SERVICES LTD,2023780,"30,265.33 ",Judicial Broadband Costs relating to various sites
Ministry of Justice,MoJ HQ,03/05/16,265000-IT & Telecommunications,OZ501-HRD Feeder,CERTUS SOLUTIONS CONSULTING SERVICES LTD,2023783,"71,237.50 ",Casewrok Management Application (CMA) development
Ministry of Justice,MoJ HQ,03/05/16,512000-Intangible GBV - Additions,NZ900-Finance & Corporate Services,CGI IT UK LTD,2023784,"137,472.00 ",Common Platform Programme - Continuous Improvement
Ministry of Justice,MoJ HQ,03/05/16,512000-Intangible GBV - Additions,NZ900-Finance & Corporate Services,CGI IT UK LTD,2023784,"-68,736.00 ",Common Platform Programme - Continuous Improvement
Ministry of Justice,MoJ HQ,03/05/16,265000-IT & Telecommunications,NZ900-Finance & Corporate Services,EQUINITI ICS LTD,2023810,"36,600.00 ",Youth Justice Board Electonic Document and Records Management Development Costs
Ministry of Justice,MoJ HQ,03/05/16,532000-Tangible GBV - Additions,NZ900-Finance & Corporate Services,G4S FACILITIES MANAGEMENT (UK) LTD,2023819,"43,681.33 ",Criminal Justice System Efficiency-Crown In Court
Ministry of Justice,MoJ HQ,03/05/16,263000-Other Contracted Out Services,OZ501-HRD Feeder,INLAND REVENUE ACCOUNTS OFFICE,2023827,"1,572,496.64 ",Generalist Fast Stream scheme - costs re-charged to business
Ministry of Justice,MoJ HQ,03/05/16,224000-Staff travel and other,NZ401-Finance Group Feeder,INLAND REVENUE ACCOUNTS OFFICE,2023828,"57,113.00 ",Charges for Finance Fast Stream staff
Ministry of Justice,MoJ HQ,03/05/16,512000-Intangible GBV - Additions,NZ900-Finance & Corporate Services,KAINOS SOFTWARE LTD,2023833,"33,603.33 ",Common Platform Programme - Continuous Improvement
Ministry of Justice,MoJ HQ,03/05/16,265000-IT & Telecommunications,NZ900-Finance & Corporate Services,LOCKHEED MARTIN UK LTD,2023840,"29,166.11 ",Service Integration and Management Transition Costs
Ministry of Justice,MoJ HQ,03/05/16,265000-IT & Telecommunications,NX900-MOJ Shared Services,ORACLE CORPORATION U K LTD,2023859,"2,218,075.18 ","Software update, license and support"
Ministry of Justice,MoJ HQ,03/05/16,265000-IT & Telecommunications,NX900-MOJ Shared Services,ORACLE CORPORATION U K LTD,2023859,"-848,871.40 ","Software update, license and support Credit Note"
Ministry of Justice,MoJ HQ,03/05/16,265000-IT & Telecommunications,NZ900-Finance & Corporate Services,SELEX ES LTD,2023878,"26,423.42 ",Future IT Sourcing Performance Monitoring
Ministry of Justice,MoJ HQ,03/05/16,265000-IT & Telecommunications,NZ900-Finance & Corporate Services,SOPRA STERIA LTD,2023885,"35,690.09 ", Future Offender Management National Infrastructure Exit and Transition charges
Ministry of Justice,MoJ HQ,03/05/16,265000-IT & Telecommunications,NZ900-Finance & Corporate Services,SOPRA STERIA LTD,2023885,"26,834.00 ", Future Offender Management National Infrastructure Exit and Transition charges
Ministry of Justice,MoJ HQ,03/05/16,265000-IT & Telecommunications,NZ900-Finance & Corporate Services,SOPRA STERIA LTD,2023885,"21,202.50 ", Future Offender Management National Infrastructure Exit and Transition charges
Ministry of Justice,MoJ HQ,03/05/16,265000-IT & Telecommunications,NZ900-Finance & Corporate Services,SOPRA STERIA LTD,2023885,"70,663.51 ", Offender Management National Infrastructure - Variable Charges 
Ministry of Justice,MoJ HQ,03/05/16,512000-Intangible GBV - Additions,NZ900-Finance & Corporate Services,SOPRA STERIA LTD,2023885,"42,294.00 ",Criminal Justice System Efficiency-Store
Ministry of Justice,MoJ HQ,03/05/16,512000-Intangible GBV - Additions,NZ900-Finance & Corporate Services,SOPRA STERIA LTD,2023885,"39,900.00 ",Criminal Justice System Efficiency-Store
Ministry of Justice,MoJ HQ,03/05/16,512000-Intangible GBV - Additions,NZ900-Finance & Corporate Services,SOPRA STERIA LTD,2023885,"36,214.50 ",Common Platform Programme-Defence
Ministry of Justice,MoJ HQ,03/05/16,512000-Intangible GBV - Additions,NZ900-Finance & Corporate Services,SOPRA STERIA LTD,2023885,"28,929.60 ",Criminal Justice System Efficiency-Store
Ministry of Justice,MoJ HQ,03/05/16,263000-Other Contracted Out Services,LZ600-Transforming Justice,STAFFORDSHIRE COUNTY COUNCIL,2023886,"919,442.40 ","Staffordshire Council County continues to provide the Claims Management Regulation Compliance Office under contract to the MOJ.  Costs are recovered in full from fees charged to regulated businesses, so is cost revenue neutral to MOJ."
Ministry of Justice,MoJ HQ,03/05/16,512000-Intangible GBV - Additions,NZ900-Finance & Corporate Services,TRIAD GROUP PLC,2023902,"92,560.60 ",Common Platform Programme - LPaSS
Ministry of Justice,MoJ HQ,03/05/16,512000-Intangible GBV - Additions,NZ900-Finance & Corporate Services,TRIAD GROUP PLC,2023902,"89,021.30 ",Common Platform Programme - LPaSS
Ministry of Justice,MoJ HQ,03/05/16,223000-Other Expenditure,NZ406-Strategic Estates Feeder,TRIUMPH FURNITURE LTD,2023903,"30,873.05 ",Furniture Order 2 for TW3 (The Way We Work Project)
Ministry of Justice,MoJ HQ,03/05/16,265000-IT & Telecommunications,NZ900-Finance & Corporate Services,VODAFONE LTD (RETAIL),2023907,"598,941.97 ",Video & Voice Integration Fixed Charges April 2015 - March 2016.
Ministry of Justice,MoJ HQ,03/05/16,265000-IT & Telecommunications,NZ900-Finance & Corporate Services,VODAFONE LTD (RETAIL),2023907,"117,675.56 ",Video & Voice Integration Fixed Charges April 2015 - March 2016.
Ministry of Justice,MoJ HQ,03/05/16,265000-IT & Telecommunications,NZ900-Finance & Corporate Services,VODAFONE LTD (RETAIL),2023908,"629,468.13 ", Future Offender Management National Infrastructure Exit and Transition charges
Ministry of Justice,MoJ HQ,03/05/16,265000-IT & Telecommunications,NZ900-Finance & Corporate Services,VODAFONE LTD (RETAIL),2023908,"119,232.81 ",Wide Area network /Local Area Network Fixed Charges 
Ministry of Justice,MoJ HQ,05/05/16,265000-IT & Telecommunications,NZ900-Finance & Corporate Services,ATOS IT SERVICES UK LTD,2023928,"103,642.06 ",Atos Services - The Way We Work Tech Connect
Ministry of Justice,MoJ HQ,05/05/16,532000-Tangible GBV - Additions,NZ900-Finance & Corporate Services,ATOS IT SERVICES UK LTD,2023928,"46,746.33 ",The Way We Work project
Ministry of Justice,MoJ HQ,05/05/16,224000-Staff travel and other,LZ600-Transforming Justice,CABINET OFFICE,2023939,"88,480.18 ",CLA licence Model Recharge 2013-2015
Ministry of Justice,MoJ HQ,05/05/16,212001-Agency staff,QY200-OU10 Billback,CAPITA BUSINESS SERVICES LTD,2023941,"726,193.78 ",Fees and expenses for temporary contract staff utilised across MoJ
Ministry of Justice,MoJ HQ,05/05/16,265000-IT & Telecommunications,NX900-MOJ Shared Services,CERTUS SOLUTIONS CONSULTING SERVICES LTD,2023943,"116,300.00 ",Support to Arms Length Bodies for onboarding to Phoenix
Ministry of Justice,MoJ HQ,05/05/16,265000-IT & Telecommunications,NZ900-Finance & Corporate Services,CGI IT UK LTD,2023944,"2,415,602.47 ",ICT App Maintenance and Support 
Ministry of Justice,MoJ HQ,05/05/16,265000-IT & Telecommunications,NZ900-Finance & Corporate Services,CGI IT UK LTD,2023944,"402,178.00 ",ICT Hosting Services 
Ministry of Justice,MoJ HQ,05/05/16,265000-IT & Telecommunications,NZ900-Finance & Corporate Services,CGI IT UK LTD,2023944,"283,499.11 ",ICT Printing Services 
Ministry of Justice,MoJ HQ,05/05/16,265000-IT & Telecommunications,NZ900-Finance & Corporate Services,CGI IT UK LTD,2023944,"40,026.00 ",ICT Hosting Services 
Ministry of Justice,MoJ HQ,05/05/16,265000-IT & Telecommunications,NZ900-Finance & Corporate Services,CGI IT UK LTD,2023944,"21,091.00 ",ICT App Maintenance and Support 
Ministry of Justice,MoJ HQ,05/05/16,224000-Staff travel and other,NZ900-Finance & Corporate Services,HM REVENUE & CUSTOMS,2023975,"49,200.00 ",Professional membership fees for Government Operational Researchers
Ministry of Justice,MoJ HQ,05/05/16,265000-IT & Telecommunications,NX900-MOJ Shared Services,HEWLETT PACKARD ENTERPRISE SERVICES UK LTD,2023979,"64,481.06 ",Support to Arms Length Bodies for onboarding to Phoenix
Ministry of Justice,MoJ HQ,05/05/16,532000-Tangible GBV - Additions,NZ900-Finance & Corporate Services,HEWLETT PACKARD ENTERPRISE SERVICES UK LTD,2023979,"360,431.28 ",NOMS Prison Monitors
Ministry of Justice,MoJ HQ,05/05/16,223000-Other Expenditure,RG999-CFLAP Accumulator,MS CHRISTINA LAMBERT QC,2023999,"65,924.00 ",Legal Services
Ministry of Justice,MoJ HQ,05/05/16,265000-IT & Telecommunications,NZ900-Finance & Corporate Services,SOPRA STERIA LTD,2024012,"233,000.00 ",Criminal Justice Secure Exchange monthly charges
Ministry of Justice,MoJ HQ,05/05/16,265000-IT & Telecommunications,NZ900-Finance & Corporate Services,SOPRA STERIA LTD,2024012,"144,000.00 ",Criminal Justice System Efficiency- Re-procurement 
Ministry of Justice,MoJ HQ,05/05/16,263000-Other Contracted Out Services,NX900-MOJ Shared Services,SSCL (SHARED SERVICES CONNECTED LTD),2024015,"270,157.19 ",Service charges to Shared Services provider
Ministry of Justice,MoJ HQ,05/05/16,265000-IT & Telecommunications,QY200-OU10 Billback,VODAFONE CORPORATE LTD,2024025,"28,098.30 ",Provision of telephony service utilised across MoJ
Ministry of Justice,MoJ HQ,05/05/16,265000-IT & Telecommunications,NZ900-Finance & Corporate Services,VODAFONE LTD (RETAIL),2024026,"33,000.00 ",Video & Voice Integration Fixed Charges April 2015 - March 2016.
Ministry of Justice,MoJ HQ,05/05/16,265000-IT & Telecommunications,NZ900-Finance & Corporate Services,VODAFONE LTD (RETAIL),2024027,"452,460.42 ",Video & Voice Integration Variable Charges April 2015 - March 2016.
Ministry of Justice,MoJ HQ,05/05/16,265000-IT & Telecommunications,NZ900-Finance & Corporate Services,VODAFONE LTD (RETAIL),2024027,"43,596.29 ", Future Offender Management National Infrastructure Wide/Local Area Network Service Charge 
Ministry of Justice,MoJ HQ,09/05/16,265000-IT & Telecommunications,QY200-OU10 Billback,ATOS IT SERVICES UK LTD,2024040,"627,566.10 ",Provision of internet protocol telephony service utilised across MoJ
Ministry of Justice,MoJ HQ,09/05/16,265000-IT & Telecommunications,QY200-OU10 Billback,ATOS IT SERVICES UK LTD,2024040,"229,204.46 ",Provision of a sustainable print service utilised across MoJ
Ministry of Justice,MoJ HQ,09/05/16,265000-IT & Telecommunications,QY200-OU10 Billback,ATOS IT SERVICES UK LTD,2024040,"86,874.92 ",Provision of telephony service utilised across MoJ
Ministry of Justice,MoJ HQ,09/05/16,265000-IT & Telecommunications,NZ900-Finance & Corporate Services,BMT HI-Q SIGMA LTD,2024048,"28,941.60 ",Enterprise Architecture Services relating to Common Platform Programme
Ministry of Justice,MoJ HQ,09/05/16,266000-Judicial Costs,MF600-Directorate of Judicial Offices,CALDER CONFERENCES LTD,2024056,"19,762.59 ",Venue hire costs in relation to judicial training Mental Health Core Course on 24-Feb-16 to 25-Feb-16
Ministry of Justice,MoJ HQ,09/05/16,266000-Judicial Costs,MF600-Directorate of Judicial Offices,CALDER CONFERENCES LTD,2024056,"2,961.90 ",Venue hire costs in relation to judicial training Mental Health Core Course on 24-Feb-16 to 25-Feb-16
Ministry of Justice,MoJ HQ,09/05/16,223000-Other Expenditure,RG999-CFLAP Accumulator,FIELD FISHER WATERHOUSE LLP,2024083,"42,858.77 ",Legal Services
Ministry of Justice,MoJ HQ,09/05/16,265000-IT & Telecommunications,NX900-MOJ Shared Services,HEWLETT PACKARD ENTERPRISE SERVICES UK LTD,2024101,"23,788.22 ","IT cabling and telephony configuration work at Phoenix House, Newport"
Ministry of Justice,MoJ HQ,09/05/16,265000-IT & Telecommunications,NZ900-Finance & Corporate Services,LOCKHEED MARTIN UK LTD,2024122,"641,756.91 ",Service Integration and Management Transition Costs
Ministry of Justice,MoJ HQ,09/05/16,265000-IT & Telecommunications,NZ900-Finance & Corporate Services,LOCKHEED MARTIN UK LTD,2024122,"640,597.32 ",Service Integration and Management Transition Costs
Ministry of Justice,MoJ HQ,09/05/16,265000-IT & Telecommunications,NZ900-Finance & Corporate Services,LOCKHEED MARTIN UK LTD,2024122,"182,143.31 ",Service Integration and Management Transition Costs
Ministry of Justice,MoJ HQ,09/05/16,265000-IT & Telecommunications,NZ900-Finance & Corporate Services,Q-SOLUTION LTD,2024168,"106,084.82 ",Criminal Justice Secure Exchange On going costs
Ministry of Justice,MoJ HQ,09/05/16,265000-IT & Telecommunications,NZ900-Finance & Corporate Services,VODAFONE LTD (RETAIL),2024201,"90,237.52 ",Video & Voice Integration Fixed Charges April 2015 - March 2016.
Ministry of Justice,MoJ HQ,09/05/16,223000-Other Expenditure,QY300-Fleet Car Mgmt,VOLKSWAGEN GROUP LEASING,2024202,"26,856.79 ",Provision of lease cars utilised across MoJ
Ministry of Justice,MoJ HQ,09/05/16,265000-IT & Telecommunications,NZ900-Finance & Corporate Services,XEROX (UK) LTD,2024212,"84,523.27 ", Future Offender Management National Infrastructure End User Computing print service charges
Ministry of Justice,MoJ HQ,11/05/16,246000-Current Grants,RB999-JPG - CJRD,PCC FOR WEST YORKSHIRE#RB31111756,2024222,"1,338,169.36 ",Funding for the PCC to provide local practical and emotional support to victims of crime.
Ministry of Justice,MoJ HQ,12/05/16,265000-IT & Telecommunications,NZ900-Finance & Corporate Services,ATOS IT SERVICES UK LTD,2024235,"1,360,797.26 ",ICT Network Services 
Ministry of Justice,MoJ HQ,12/05/16,265000-IT & Telecommunications,NZ900-Finance & Corporate Services,ATOS IT SERVICES UK LTD,2024235,"1,115,334.65 ",ICT Hosting Services 
Ministry of Justice,MoJ HQ,12/05/16,265000-IT & Telecommunications,NZ900-Finance & Corporate Services,ATOS IT SERVICES UK LTD,2024235,"657,979.46 ",ICT Desktop activity.
Ministry of Justice,MoJ HQ,12/05/16,265000-IT & Telecommunications,NZ900-Finance & Corporate Services,ATOS IT SERVICES UK LTD,2024235,"538,609.57 ",ICT Business As Usual Service Integration and Maintenance activity.
Ministry of Justice,MoJ HQ,12/05/16,265000-IT & Telecommunications,NZ900-Finance & Corporate Services,ATOS IT SERVICES UK LTD,2024235,"161,375.63 ",ICT Hosting Services 
Ministry of Justice,MoJ HQ,12/05/16,265000-IT & Telecommunications,NZ900-Finance & Corporate Services,ATOS IT SERVICES UK LTD,2024235,"152,903.30 ",ICT Laptops
Ministry of Justice,MoJ HQ,12/05/16,265000-IT & Telecommunications,NZ900-Finance & Corporate Services,ATOS IT SERVICES UK LTD,2024235,"152,195.27 ",ICT Other 
Ministry of Justice,MoJ HQ,12/05/16,265000-IT & Telecommunications,NZ900-Finance & Corporate Services,ATOS IT SERVICES UK LTD,2024235,"110,206.88 ",ICT Business As Usual Service Integration and Maintenance activity.
Ministry of Justice,MoJ HQ,12/05/16,265000-IT & Telecommunications,NZ900-Finance & Corporate Services,ATOS IT SERVICES UK LTD,2024235,"70,940.63 ",ICT App Maintenance and Support 
Ministry of Justice,MoJ HQ,12/05/16,265000-IT & Telecommunications,NZ900-Finance & Corporate Services,ATOS IT SERVICES UK LTD,2024235,"32,711.64 ",ICT Telephony Services
Ministry of Justice,MoJ HQ,12/05/16,265000-IT & Telecommunications,NZ900-Finance & Corporate Services,ATOS IT SERVICES UK LTD,2024235,"375,361.00 ",Future IT Sourcing Maintenance and Transition costs
Ministry of Justice,MoJ HQ,12/05/16,265000-IT & Telecommunications,QY200-OU10 Billback,BT PLC,2024256,"26,064.41 ",Provision of telephony service utilised across MoJ
Ministry of Justice,MoJ HQ,12/05/16,263000-Other Contracted Out Services,OZ501-HRD Feeder,CABINET OFFICE,2024258,"121,282.80 ",Future Leadership scheme (Talent Scheme) ran by CSR.
Ministry of Justice,MoJ HQ,12/05/16,212001-Agency staff,QY200-OU10 Billback,CAPITA BUSINESS SERVICES LTD,2024262,"511,805.71 ",Fees and expenses for temporary contract staff utilised across MoJ
Ministry of Justice,MoJ HQ,12/05/16,265000-IT & Telecommunications,QY200-OU10 Billback,EVERYTHING EVERYWHERE LTD,2024288,"37,879.58 ",Provision of telephony service utilised across MoJ
Ministry of Justice,MoJ HQ,12/05/16,265000-IT & Telecommunications,QY200-OU10 Billback,EVERYTHING EVERYWHERE LTD,2024288,121.49 ,Provision of telephony service utilised across MoJ
Ministry of Justice,MoJ HQ,12/05/16,265000-IT & Telecommunications,NZ900-Finance & Corporate Services,i2N LTD,2024309,"30,199.63 ",Youth Justice Board Contract Costs for Connectivity support
Ministry of Justice,MoJ HQ,12/05/16,512000-Intangible GBV - Additions,NZ900-Finance & Corporate Services,KAINOS SOFTWARE LTD,2024316,"40,500.00 ",Common Platform Programme - Digital Repository
Ministry of Justice,MoJ HQ,12/05/16,265000-IT & Telecommunications,NZ900-Finance & Corporate Services,LOCKHEED MARTIN UK LTD,2024324,"82,958.86 ", Future Offender Management National Infrastructure Exit and Transition charges
Ministry of Justice,MoJ HQ,12/05/16,224000-Staff travel and other,QY200-OU10 Billback,REDFERN TRAVEL LTD,2024377,"152,733.40 ",Provision of hotel & travel bookings utilised across MoJ
Ministry of Justice,MoJ HQ,12/05/16,224000-Staff travel and other,QY200-OU10 Billback,REDFERN TRAVEL LTD,2024377,"141,424.53 ",Provision of hotel & travel bookings utilised across MoJ
Ministry of Justice,MoJ HQ,12/05/16,263000-Other Contracted Out Services,NX900-MOJ Shared Services,SSCL (SHARED SERVICES CONNECTED LTD),2024400,"204,962.84 ",Service charges to Shared Services provider
Ministry of Justice,MoJ HQ,12/05/16,265000-IT & Telecommunications,NZ900-Finance & Corporate Services,TRUSTMARRQUE SOLUTIONS LTD,2024420,"29,664.00 ",Cost of Service Management ICT Licensing
Ministry of Justice,MoJ HQ,16/05/16,512000-Intangible GBV - Additions,NZ900-Finance & Corporate Services,AGILESPHERE LLP,2024444,"26,550.00 ",Common Platform Programme - Witness Man. 
Ministry of Justice,MoJ HQ,16/05/16,223000-Other Expenditure,NZ401-Finance Group Feeder,ALLEN LANE CONSULTANCY LTD,2024446,"202,734.00 ",Fees for Managed Accounting Service core contract and call off charges utilised across MoJ
Ministry of Justice,MoJ HQ,16/05/16,265000-IT & Telecommunications,NZ900-Finance & Corporate Services,ATOS IT SERVICES UK LTD,2024448,"403,915.00 ",ICT Other 
Ministry of Justice,MoJ HQ,16/05/16,532000-Tangible GBV - Additions,NZ900-Finance & Corporate Services,ATOS IT SERVICES UK LTD,2024448,"29,709.10 ",The Way We Work project
Ministry of Justice,MoJ HQ,16/05/16,212001-Agency staff,NZ900-Finance & Corporate Services,AUTOMATION LOGIC LTD,2024450,"83,801.41 ",Contract to provide Digital skills to MoJ Digital Services to aid development of new products and support of existing ones.
Ministry of Justice,MoJ HQ,16/05/16,265000-IT & Telecommunications,NZ900-Finance & Corporate Services,EVERYTHING EVERYWHERE LTD,2024504,"27,105.52 ",Monthly Mobile Telephony service charges
Ministry of Justice,MoJ HQ,16/05/16,265000-IT & Telecommunications,NZ900-Finance & Corporate Services,EVERYTHING EVERYWHERE LTD,2024504,322.63 ,Monthly Telephony service charges
Ministry of Justice,MoJ HQ,16/05/16,265000-IT & Telecommunications,NZ900-Finance & Corporate Services,FUJITSU SERVICES LTD,2024510,"526,340.03 ",Service Integration & Management Operations
Ministry of Justice,MoJ HQ,16/05/16,265000-IT & Telecommunications,NZ900-Finance & Corporate Services,FUJITSU SERVICES LTD,2024510,"153,839.28 ",Service Integration & Management Service Management
Ministry of Justice,MoJ HQ,16/05/16,265000-IT & Telecommunications,NZ900-Finance & Corporate Services,FUJITSU SERVICES LTD,2024510,"46,935.57 ",Service Integration & Management Service Desk
Ministry of Justice,MoJ HQ,16/05/16,265000-IT & Telecommunications,NZ900-Finance & Corporate Services,FUJITSU SERVICES LTD,2024510,"45,207.40 ",Service Integration & Management Governance
Ministry of Justice,MoJ HQ,16/05/16,265000-IT & Telecommunications,NZ900-Finance & Corporate Services,FUJITSU SERVICES LTD,2024510,"35,235.35 ",Service Integration & Management Security Management
Ministry of Justice,MoJ HQ,16/05/16,263000-Other Contracted Out Services,NX900-MOJ Shared Services,HEWLETT PACKARD ENTERPRISE SERVICES UK LTD,2024523,"147,873.08 ",IT configuration work to support NOMS ICT Services
Ministry of Justice,MoJ HQ,16/05/16,512000-Intangible GBV - Additions,NZ900-Finance & Corporate Services,KAINOS SOFTWARE LTD,2024534,"28,500.00 ",Common Platform Programme - Continuous Improvement
Ministry of Justice,MoJ HQ,16/05/16,262000-SCA Costs,NZ406-Strategic Estates Feeder,LAND SECURITIES PROPERTIES LTD,2024538,"4,059,505.25 ",Incremental Rent for 102 Petty France for the period 01/04/2016 - 30/06/2016.
Ministry of Justice,MoJ HQ,16/05/16,266000-Judicial Costs,MF600-Directorate of Judicial Offices,LEXISNEXIS UK,2024543,"1,651,975.00 ",Annual online subscriptions for Judges
Ministry of Justice,MoJ HQ,16/05/16,222003-CIS Labour TFM Estates,NZ406-Strategic Estates Feeder,MITIE FACILITIES SERVICES LTD,2024561,"151,244.97 ",CIS Labour TFM Security for April 2016.
Ministry of Justice,MoJ HQ,16/05/16,222003-CIS Labour TFM Estates,NZ406-Strategic Estates Feeder,MITIE FACILITIES SERVICES LTD,2024561,"11,223.97 ",CIS Labour TFM Management for April 2016.
Ministry of Justice,MoJ HQ,16/05/16,222003-CIS Labour TFM Estates,NZ406-Strategic Estates Feeder,MITIE FACILITIES SERVICES LTD,2024561,4.77 ,CIS Labour TFM Waste Disposal for April 2016.
Ministry of Justice,MoJ HQ,16/05/16,246000-Current Grants,RB999-JPG - CJRD,TIMPARRY JOHNATHAN FOUNDATION PEACE#RB31111758,2024572,"37,500.00 ",Funding for projects to provide specialist support to victims and survivors of terrorist incidents.
Ministry of Justice,MoJ HQ,16/05/16,246000-Current Grants,RB999-JPG - CJRD,SAFELINE#RB31111759,2024573,"25,000.00 ",Telephone helpline providing support to male victims of rape.
Ministry of Justice,MoJ HQ,16/05/16,263000-Other Contracted Out Services,RC999-Criminal Justice Group - OMS,PROSPECTS SERVICES LTD,2024589,"262,368.00 ","Education for young people in custody at Feltham Young Offenders Institute, provided by Prospects."
Ministry of Justice,MoJ HQ,16/05/16,263000-Other Contracted Out Services,NX900-MOJ Shared Services,SSCL (SHARED SERVICES CONNECTED LTD),2024617,"119,813.44 ",Switchboard service for NOMS provided by Shared Service provider
Ministry of Justice,MoJ HQ,16/05/16,265000-IT & Telecommunications,NZ900-Finance & Corporate Services,TRUSTMARRQUE SOLUTIONS LTD,2024632,"47,512.50 ",Youth Justice Board Licence Renewal Costs
Ministry of Justice,MoJ HQ,18/05/16,611000-Debtors <1 year - Other Debtors,WW000-Balance Sheet,DEPARTMENT FOR TRANSPORT,2024649,"45,430.21 ",Refund of a duplicate payment made to MoJ
Ministry of Justice,MoJ HQ,18/05/16,611000-Debtors <1 year - Other Debtors,WW000-Balance Sheet,DEPARTMENT FOR TRANSPORT,2024649,"45,427.77 ",Refund of a duplicate payment made to MoJ
Ministry of Justice,MoJ HQ,18/05/16,246000-Current Grants,RB999-JPG - CJRD,RESTORATIVE JUSTICE COUNCIL#RB31111757,2024654,"239,500.00 ","Funding provided to support quality in the delivery of restorative justice, increase understanding of restorative justice, and increase provision of restorative justice across the criminal justice system

"
Ministry of Justice,MoJ HQ,19/05/16,512000-Intangible GBV - Additions,NZ900-Finance & Corporate Services,AGILESPHERE LLP,2024656,"41,740.63 ",Common Platform Programme - Archive Data 
Ministry of Justice,MoJ HQ,19/05/16,223000-Other Expenditure,NZ401-Finance Group Feeder,ALLEN LANE CONSULTANCY LTD,2024659,"980,334.00 ",Fees for Managed Accounting Service core contract and call off charges utilised across MoJ
Ministry of Justice,MoJ HQ,19/05/16,265000-IT & Telecommunications,NZ900-Finance & Corporate Services,ARK DATA CENTRES LTD,2024663,"210,522.14 ",Monthly Data Centre Costs
Ministry of Justice,MoJ HQ,19/05/16,265000-IT & Telecommunications,NZ900-Finance & Corporate Services,ATOS IT SERVICES UK LTD,2024666,"36,966.00 ",Charges relating to OPG Nottingham ICT Relocation Hardware Migration
Ministry of Justice,MoJ HQ,19/05/16,512000-Intangible GBV - Additions,NZ900-Finance & Corporate Services,CAPGEMINI UK PLC,2024685,"75,180.00 ",Common Platform Programme - Info Quality + Collaboration 
Ministry of Justice,MoJ HQ,19/05/16,512000-Intangible GBV - Additions,NZ900-Finance & Corporate Services,CAPGEMINI UK PLC,2024685,"47,073.00 ",Common Platform Programme - Digital Repository
Ministry of Justice,MoJ HQ,19/05/16,265000-IT & Telecommunications,NZ900-Finance & Corporate Services,CAPITA BUSINESS SERVICES LTD,2024686,"200,094.00 ",Exit and Transition  services
Ministry of Justice,MoJ HQ,19/05/16,265000-IT & Telecommunications,NZ900-Finance & Corporate Services,CAPITA BUSINESS SERVICES LTD,2024686,"185,229.60 ",Exit and Transition  services
Ministry of Justice,MoJ HQ,19/05/16,265000-IT & Telecommunications,NZ900-Finance & Corporate Services,CAPITA BUSINESS SERVICES LTD,2024686,"180,633.60 ",Project Management Office service to the Future IT Sourcing Programme
Ministry of Justice,MoJ HQ,19/05/16,266000-Judicial Costs,MF600-Directorate of Judicial Offices,EIN (ELECTRONIC IMMIGRATION NETWORK),2024721,"40,000.00 ",Annual online subscriptions for Judges
Ministry of Justice,MoJ HQ,19/05/16,212000-Staff Cost - Wages & Salaries,NZ900-Finance & Corporate Services,HM REVENUE & CUSTOMS,2024748,"26,400.00 ","Recruitment costs for young talents in Programme, Digital & Technology"
Ministry of Justice,MoJ HQ,19/05/16,223000-Other Expenditure,QY300-Fleet Car Mgmt,LEX AUTOLEASE LTD,2024772,"39,000.53 ",Provision of lease cars utilised across MoJ
Ministry of Justice,MoJ HQ,19/05/16,532000-Tangible GBV - Additions,NZ900-Finance & Corporate Services,MITIE FACILITIES SERVICES LTD,2024781,"64,277.40 ",Criminal Justice System Efficiency-Crown In Court
Ministry of Justice,MoJ HQ,19/05/16,532000-Tangible GBV - Additions,NZ900-Finance & Corporate Services,MITIE FACILITIES SERVICES LTD,2024781,"55,532.18 ",Criminal Justice System Efficiency-Crown In Court
Ministry of Justice,MoJ HQ,19/05/16,532000-Tangible GBV - Additions,NZ900-Finance & Corporate Services,MITIE FACILITIES SERVICES LTD,2024781,"47,173.52 ",Criminal Justice System Efficiency-Crown In Court
Ministry of Justice,MoJ HQ,19/05/16,532000-Tangible GBV - Additions,NZ900-Finance & Corporate Services,MITIE FACILITIES SERVICES LTD,2024781,"43,257.30 ",Criminal Justice System Efficiency-Crown In Court
Ministry of Justice,MoJ HQ,19/05/16,532000-Tangible GBV - Additions,NZ900-Finance & Corporate Services,MITIE FACILITIES SERVICES LTD,2024781,"42,383.53 ",Criminal Justice System Efficiency-Crown In Court
Ministry of Justice,MoJ HQ,19/05/16,532000-Tangible GBV - Additions,NZ900-Finance & Corporate Services,MITIE FACILITIES SERVICES LTD,2024781,"30,439.44 ",Criminal Justice System Efficiency-Crown In Court
Ministry of Justice,MoJ HQ,19/05/16,224000-Staff travel and other,QY200-OU10 Billback,REDFERN TRAVEL LTD,2024814,"169,222.56 ",Provision of hotel & travel bookings utilised across MoJ
Ministry of Justice,MoJ HQ,19/05/16,265000-IT & Telecommunications,NZ900-Finance & Corporate Services,SELEX ES LTD,2024825,"90,000.00 ",Performance Monitoring Costs in respect of ICT Security
Ministry of Justice,MoJ HQ,19/05/16,265000-IT & Telecommunications,NZ900-Finance & Corporate Services,SOLIRIUS LTD,2024830,"43,680.00 ",Technical Architecture Services relating to LAA Future IT Sourcing Migration
Ministry of Justice,MoJ HQ,19/05/16,265000-IT & Telecommunications,NZ900-Finance & Corporate Services,SOLIRIUS LTD,2024830,"42,000.00 ",Technical Architecture Services relating to LAA Future IT Sourcing Migration
Ministry of Justice,MoJ HQ,19/05/16,265000-IT & Telecommunications,NZ900-Finance & Corporate Services,SOLIRIUS LTD,2024830,"36,120.00 ",Technical Architecture Services relating to LAA Future IT Sourcing Migration
Ministry of Justice,MoJ HQ,19/05/16,265000-IT & Telecommunications,NZ900-Finance & Corporate Services,SOLIRIUS LTD,2024830,"28,560.00 ",Technical Architecture Services relating to LAA Future IT Sourcing Migration
Ministry of Justice,MoJ HQ,19/05/16,265000-IT & Telecommunications,NZ900-Finance & Corporate Services,SOLIRIUS LTD,2024830,"25,200.00 ",Technical Architecture Services relating to LAA Future IT Sourcing Migration
Ministry of Justice,MoJ HQ,19/05/16,265000-IT & Telecommunications,NZ900-Finance & Corporate Services,SOPRA STERIA LTD,2024832,"31,111.70 ", Future Offender Management National Infrastructure Exit and Transition charges
Ministry of Justice,MoJ HQ,19/05/16,512000-Intangible GBV - Additions,NZ900-Finance & Corporate Services,SOPRA STERIA LTD,2024832,"61,851.00 ",Common Platform Programme- Core Crime 
Ministry of Justice,MoJ HQ,19/05/16,265000-IT & Telecommunications,NZ401-Finance Group Feeder,SOPRA STERIA LTD,2024832,"34,492.00 ",Hosting and support charges for Hyperion financial reporting system
Ministry of Justice,MoJ HQ,19/05/16,263000-Other Contracted Out Services,NX900-MOJ Shared Services,SSCL (SHARED SERVICES CONNECTED LTD),2024834,"116,800.00 ",Switchboard service for NOMS provided by Shared Service provider
Ministry of Justice,MoJ HQ,19/05/16,223000-Other Expenditure,LZ600-Transforming Justice,TNT UK LTD,2024848,"78,329.29 ",Monthly storage and activity costs for paper records stored by TNT on MoJs behalf at its secure repositories.
Ministry of Justice,MoJ HQ,19/05/16,512000-Intangible GBV - Additions,NZ900-Finance & Corporate Services,TRIAD GROUP PLC,2024851,"31,785.00 ",Common Platform Programme-Crown Court Resulting
Ministry of Justice,MoJ HQ,19/05/16,512000-Intangible GBV - Additions,NZ900-Finance & Corporate Services,TRIAD GROUP PLC,2024851,"26,120.00 ",Common Platform Programme-Management Information
Ministry of Justice,MoJ HQ,19/05/16,265000-IT & Telecommunications,NZ900-Finance & Corporate Services,VODAFONE LTD (RETAIL),2024858,"1,248,639.93 ", Future Offender Management National Infrastructure Wide Area Network Service Charge 
Ministry of Justice,MoJ HQ,19/05/16,265000-IT & Telecommunications,NZ900-Finance & Corporate Services,VODAFONE LTD (RETAIL),2024858,"199,442.85 ",Criminal Justice Secure eMail Monthly Charge
Ministry of Justice,MoJ HQ,19/05/16,265000-IT & Telecommunications,NZ900-Finance & Corporate Services,VODAFONE LTD (RETAIL),2024858,"113,590.97 ",Vodafone Monthly Telephony Service Charge
Ministry of Justice,MoJ HQ,19/05/16,224000-Staff travel and other,OZ501-HRD Feeder,XEXEC LTD,2024879,"76,933.84 ","R&R Voucher scheme, costs re-charged to business."
Ministry of Justice,MoJ HQ,23/05/16,265000-IT & Telecommunications,NZ900-Finance & Corporate Services,BAE SYSTEMS APPLIED INTELLIGENCE LTD,2024891,"194,172.04 ",Information Assurance Managed Service charge
Ministry of Justice,MoJ HQ,23/05/16,265000-IT & Telecommunications,NZ900-Finance & Corporate Services,CACI LTD,2024908,"52,402.77 ",Youth Justice Board Costs for Provision of Hosting Services
Ministry of Justice,MoJ HQ,23/05/16,265000-IT & Telecommunications,NZ900-Finance & Corporate Services,CACI LTD,2024908,"50,272.44 ",Youth Justice Board Costs for Provision of Hosting Services
Ministry of Justice,MoJ HQ,23/05/16,265000-IT & Telecommunications,NZ900-Finance & Corporate Services,CACI LTD,2024908,"6,219.36 ",Youth Justice Board Costs for Provision of Hosting Services
Ministry of Justice,MoJ HQ,23/05/16,512000-Intangible GBV - Additions,NZ900-Finance & Corporate Services,CAPGEMINI UK PLC,2024912,"56,705.50 ",Common Platform Programme - Info Quality + Collaboration 
Ministry of Justice,MoJ HQ,23/05/16,512000-Intangible GBV - Additions,NZ900-Finance & Corporate Services,CAPGEMINI UK PLC,2024912,"26,767.00 ",Common Platform Programme - Info Quality + Collaboration 
Ministry of Justice,MoJ HQ,23/05/16,212001-Agency staff,QY200-OU10 Billback,CAPITA BUSINESS SERVICES LTD,2024913,"856,948.79 ",Fees and expenses for temporary contract staff utilised across MoJ
Ministry of Justice,MoJ HQ,26/05/16,610400-Debtors <1 year - Prepayments & Accrued Income,WW000-Balance Sheet,CITY OF WESTMINSTER,2024917,"616,264.00 ",Rates for 102 Petty France for April 2016.
Ministry of Justice,MoJ HQ,26/05/16,610400-Debtors <1 year - Prepayments & Accrued Income,WW000-Balance Sheet,CITY OF WESTMINSTER,2024917,"131,835.00 ",Rates for Clive House for April 2016.
Ministry of Justice,MoJ HQ,23/05/16,223000-Other Expenditure,RC999-Criminal Justice Group - OMS,DEPARTMENT FOR EDUCATION,2024925,"400,000.00 ",Ministry of Justice Corporate- Refund of unused Special Education fund back to Department for Education 
Ministry of Justice,MoJ HQ,23/05/16,266000-Judicial Costs,MF600-Directorate of Judicial Offices,HAMMICKS LEGAL INFORMATION SERVICES,2024948,"381,813.00 ",Annual Print subscriptions for Judges
Ministry of Justice,MoJ HQ,23/05/16,266000-Judicial Costs,MF600-Directorate of Judicial Offices,HAMMICKS LEGAL INFORMATION SERVICES,2024948,"55,358.00 ",Legal Publications for Judges
Ministry of Justice,MoJ HQ,23/05/16,266000-Judicial Costs,MF600-Directorate of Judicial Offices,HAMMICKS LEGAL INFORMATION SERVICES,2024948,"2,092.80 ",Legal Publications for Judges
Ministry of Justice,MoJ HQ,23/05/16,512000-Intangible GBV - Additions,NZ900-Finance & Corporate Services,KAINOS SOFTWARE LTD,2024959,"28,120.00 ",Common Platform Programme - Digital Repository
Ministry of Justice,MoJ HQ,23/05/16,222003-CIS Labour TFM Estates,NZ406-Strategic Estates Feeder,MITIE FACILITIES SERVICES LTD,2024973,"54,880.88 ",CIS Labour TFM Internal Moves for April 2016.
Ministry of Justice,MoJ HQ,23/05/16,512000-Intangible GBV - Additions,NZ900-Finance & Corporate Services,SKYSCAPE CLOUD SERVICES LTD,2025023,"313,067.00 ",Common Platform Programme costs
Ministry of Justice,MoJ HQ,23/05/16,512000-Intangible GBV - Additions,NZ900-Finance & Corporate Services,SKYSCAPE CLOUD SERVICES LTD,2025024,"298,337.23 ",Common Platform Programme costs
Ministry of Justice,MoJ HQ,23/05/16,265000-IT & Telecommunications,NZ900-Finance & Corporate Services,SOPRA STERIA LTD,2025026,"686,210.00 ", Offender Management National Infrastructure End User Computing
Ministry of Justice,MoJ HQ,23/05/16,265000-IT & Telecommunications,NZ900-Finance & Corporate Services,SOPRA STERIA LTD,2025026,"507,180.00 ", Offender Management National Infrastructure  - Datacentre 
Ministry of Justice,MoJ HQ,23/05/16,265000-IT & Telecommunications,NZ900-Finance & Corporate Services,SOPRA STERIA LTD,2025026,"408,130.00 ", Offender Management National Infrastructure - Hosting 
Ministry of Justice,MoJ HQ,23/05/16,265000-IT & Telecommunications,NZ900-Finance & Corporate Services,SOPRA STERIA LTD,2025026,"375,590.00 ", Offender Management National Infrastructure - Service Integration and Management 
Ministry of Justice,MoJ HQ,23/05/16,265000-IT & Telecommunications,NZ900-Finance & Corporate Services,SOPRA STERIA LTD,2025026,"310,100.00 ", Offender Management National Infrastructure  - nDelius 
Ministry of Justice,MoJ HQ,23/05/16,265000-IT & Telecommunications,NZ900-Finance & Corporate Services,SOPRA STERIA LTD,2025026,"67,304.69 ", Offender Management National Infrastructure - Variable Charges 
Ministry of Justice,MoJ HQ,23/05/16,265000-IT & Telecommunications,NZ900-Finance & Corporate Services,SOPRA STERIA LTD,2025026,"65,680.00 ", Offender Management National Infrastructure - Wide Area Network/Local Area Network 
Ministry of Justice,MoJ HQ,23/05/16,512000-Intangible GBV - Additions,NZ900-Finance & Corporate Services,TRIAD GROUP PLC,2025042,"169,520.00 ",Common Platform Programme-Resulting
Ministry of Justice,MoJ HQ,23/05/16,512000-Intangible GBV - Additions,NZ900-Finance & Corporate Services,TRIAD GROUP PLC,2025042,"105,400.10 ",Common Platform Programme-Resulting
Ministry of Justice,MoJ HQ,23/05/16,512000-Intangible GBV - Additions,NZ900-Finance & Corporate Services,TRIAD GROUP PLC,2025042,"58,683.00 ",Common Platform Programme-Resulting
Ministry of Justice,MoJ HQ,23/05/16,265000-IT & Telecommunications,NZ900-Finance & Corporate Services,VODAFONE LTD (RETAIL),2025045,"926,202.62 ", Future Offender Management National Infrastructure Wide Area Network Service Charge 
Ministry of Justice,MoJ HQ,23/05/16,212000-Staff Cost - Wages & Salaries,RB999-JPG - CJRD,YOUTH JUSTICE BOARD FOR ENGLAND & WALES,2025049,"41,522.70 ",Recovery of costs for temporary agency staff
Ministry of Justice,MoJ HQ,24/05/16,631000-Bank,WW000-Balance Sheet,DFID,2025069,"87,266.32 ",Refund of a duplicate payment made to MoJ
Ministry of Justice,MoJ HQ,26/05/16,512000-Intangible GBV - Additions,RC999-Criminal Justice Group - OMS,ALPINE RESOURCING LTD,2025082,"31,033.99 ",Ministry of Justice - Asset Plus Information Technology Services
Ministry of Justice,MoJ HQ,26/05/16,265000-IT & Telecommunications,NZ900-Finance & Corporate Services,CGI IT UK LTD,2025113,"495,000.00 ",Future IT Sourcing Transition costs
Ministry of Justice,MoJ HQ,26/05/16,265000-IT & Telecommunications,NZ900-Finance & Corporate Services,CGI IT UK LTD,2025113,"205,000.00 ",Future IT Sourcing Transition costs
Ministry of Justice,MoJ HQ,26/05/16,263000-Other Contracted Out Services,RC999-Criminal Justice Group - OMS,G4S CARE & JUSTICE SERVICES (UK) LTD,2025147,"927,760.44 ",Medway - Operating secure training centre for young people in custody. 
Ministry of Justice,MoJ HQ,26/05/16,265000-IT & Telecommunications,NZ900-Finance & Corporate Services,i2N LTD,2025168,"44,427.63 ",Youth Justice Board Application Strategy Software Development
Ministry of Justice,MoJ HQ,26/05/16,265000-IT & Telecommunications,NZ900-Finance & Corporate Services,i2N LTD,2025168,"37,017.75 ",Youth Justice Board Application Strategy Software Development
Ministry of Justice,MoJ HQ,26/05/16,265000-IT & Telecommunications,NZ900-Finance & Corporate Services,i2N LTD,2025168,"36,306.88 ",Youth Justice Board Application Strategy Software Development
Ministry of Justice,MoJ HQ,26/05/16,265000-IT & Telecommunications,NX900-MOJ Shared Services,ORACLE CORPORATION U K LTD,2025213,"239,284.46 ","Software update, license and support"
Ministry of Justice,MoJ HQ,26/05/16,512000-Intangible GBV - Additions,NZ900-Finance & Corporate Services,SOPRA STERIA LTD,2025238,"27,797.00 ",Common Platform Programme-Defence
Ministry of Justice,MoJ HQ,26/05/16,512000-Intangible GBV - Additions,NZ900-Finance & Corporate Services,TRIAD GROUP PLC,2025259,"43,946.00 ",Common Platform Programme-Resulting
Ministry of Justice,MoJ HQ,26/05/16,512000-Intangible GBV - Additions,NZ900-Finance & Corporate Services,TRIAD GROUP PLC,2025259,"26,600.00 ",Common Platform Programme - Digital Repository
Ministry of Justice,MoJ HQ,26/05/16,223000-Other Expenditure,NZ406-Strategic Estates Feeder,TRIUMPH FURNITURE LTD,2025260,"34,749.25 ",Furniture Order 4 for TW3 (The Way We Work Project)
Ministry of Justice,MoJ HQ,26/05/16,223000-Other Expenditure,NZ406-Strategic Estates Feeder,TRIUMPH FURNITURE LTD,2025260,"32,648.03 ",Furniture Order 4 for TW3 (The Way We Work Project)
Ministry of Justice,MoJ HQ,26/05/16,223000-Other Expenditure,NZ406-Strategic Estates Feeder,TRIUMPH FURNITURE LTD,2025260,"30,425.58 ",Furniture Order 4 for TW3 (The Way We Work Project)
Ministry of Justice,MoJ HQ,26/05/16,265000-IT & Telecommunications,NZ900-Finance & Corporate Services,VODAFONE LTD (RETAIL),2025267,"205,788.06 ", Future Offender Management National Infrastructure Local Area Network Service Charge 
Ministry of Justice,MoJ HQ,27/05/16,223000-Other Expenditure,RG999-CFLAP Accumulator,1 CROWN OFFICE ROW#RG10110060,2025284,"79,246.20 ",Payment to counsel to the Hillsborough inquests 
Ministry of Justice,MoJ HQ,31/05/16,265000-IT & Telecommunications,LZ600-Transforming Justice,ATOS IT SERVICES UK LTD,2025288,257.50 ,Provision of IT Peripherals and individually ordered software and equipment
Ministry of Justice,MoJ HQ,31/05/16,265000-IT & Telecommunications,LZ600-Transforming Justice,ATOS IT SERVICES UK LTD,2025288,78.26 ,Provision of IT Peripherals and individually ordered software and equipment
Ministry of Justice,MoJ HQ,31/05/16,265000-IT & Telecommunications,LZ600-Transforming Justice,ATOS IT SERVICES UK LTD,2025288,78.26 ,Provision of IT Peripherals and individually ordered software and equipment
Ministry of Justice,MoJ HQ,31/05/16,265000-IT & Telecommunications,LZ600-Transforming Justice,ATOS IT SERVICES UK LTD,2025288,78.26 ,Provision of IT Peripherals and individually ordered software and equipment
Ministry of Justice,MoJ HQ,31/05/16,265000-IT & Telecommunications,LZ600-Transforming Justice,ATOS IT SERVICES UK LTD,2025288,78.26 ,Provision of IT Peripherals and individually ordered software and equipment
Ministry of Justice,MoJ HQ,31/05/16,265000-IT & Telecommunications,LZ600-Transforming Justice,ATOS IT SERVICES UK LTD,2025288,25.78 ,Provision of IT Peripherals and individually ordered software and equipment
Ministry of Justice,MoJ HQ,31/05/16,265000-IT & Telecommunications,LZ600-Transforming Justice,ATOS IT SERVICES UK LTD,2025288,25.78 ,Provision of IT Peripherals and individually ordered software and equipment
Ministry of Justice,MoJ HQ,31/05/16,265000-IT & Telecommunications,LZ600-Transforming Justice,ATOS IT SERVICES UK LTD,2025288,25.78 ,Provision of IT Peripherals and individually ordered software and equipment
Ministry of Justice,MoJ HQ,31/05/16,265000-IT & Telecommunications,LZ600-Transforming Justice,ATOS IT SERVICES UK LTD,2025288,25.78 ,Provision of IT Peripherals and individually ordered software and equipment
Ministry of Justice,MoJ HQ,31/05/16,265000-IT & Telecommunications,LZ600-Transforming Justice,ATOS IT SERVICES UK LTD,2025288,25.78 ,Provision of IT Peripherals and individually ordered software and equipment
Ministry of Justice,MoJ HQ,31/05/16,265000-IT & Telecommunications,LZ600-Transforming Justice,ATOS IT SERVICES UK LTD,2025288,25.78 ,Provision of IT Peripherals and individually ordered software and equipment
Ministry of Justice,MoJ HQ,31/05/16,265000-IT & Telecommunications,LZ600-Transforming Justice,ATOS IT SERVICES UK LTD,2025288,25.78 ,Provision of IT Peripherals and individually ordered software and equipment
Ministry of Justice,MoJ HQ,31/05/16,265000-IT & Telecommunications,NZ406-Strategic Estates Feeder,ATOS IT SERVICES UK LTD,2025288,8.63 ,Provision of IT Peripherals and individually ordered software and equipment
Ministry of Justice,MoJ HQ,31/05/16,265000-IT & Telecommunications,NZ406-Strategic Estates Feeder,ATOS IT SERVICES UK LTD,2025288,492.00 ,Pool Laptop
Ministry of Justice,MoJ HQ,31/05/16,265000-IT & Telecommunications,NZ406-Strategic Estates Feeder,ATOS IT SERVICES UK LTD,2025288,492.00 ,Pool Laptop
Ministry of Justice,MoJ HQ,31/05/16,265000-IT & Telecommunications,NZ406-Strategic Estates Feeder,ATOS IT SERVICES UK LTD,2025288,164.00 ,Pool Laptop
Ministry of Justice,MoJ HQ,31/05/16,265000-IT & Telecommunications,NZ406-Strategic Estates Feeder,ATOS IT SERVICES UK LTD,2025288,25.95 ,Provision of IT Peripherals and individually ordered software and equipment
Ministry of Justice,MoJ HQ,31/05/16,265000-IT & Telecommunications,NZ406-Strategic Estates Feeder,ATOS IT SERVICES UK LTD,2025288,25.95 ,Provision of IT Peripherals and individually ordered software and equipment
Ministry of Justice,MoJ HQ,31/05/16,265000-IT & Telecommunications,NZ406-Strategic Estates Feeder,ATOS IT SERVICES UK LTD,2025288,23.24 ,Provision of IT Peripherals and individually ordered software and equipment
Ministry of Justice,MoJ HQ,31/05/16,265000-IT & Telecommunications,NZ406-Strategic Estates Feeder,ATOS IT SERVICES UK LTD,2025288,23.24 ,Provision of IT Peripherals and individually ordered software and equipment
Ministry of Justice,MoJ HQ,31/05/16,265000-IT & Telecommunications,NZ406-Strategic Estates Feeder,ATOS IT SERVICES UK LTD,2025288,11.62 ,Provision of IT Peripherals and individually ordered software and equipment
Ministry of Justice,MoJ HQ,31/05/16,265000-IT & Telecommunications,NZ406-Strategic Estates Feeder,ATOS IT SERVICES UK LTD,2025288,11.62 ,Provision of IT Peripherals and individually ordered software and equipment
Ministry of Justice,MoJ HQ,31/05/16,265000-IT & Telecommunications,NZ406-Strategic Estates Feeder,ATOS IT SERVICES UK LTD,2025288,8.63 ,Provision of IT Peripherals and individually ordered software and equipment
Ministry of Justice,MoJ HQ,31/05/16,265000-IT & Telecommunications,NZ406-Strategic Estates Feeder,ATOS IT SERVICES UK LTD,2025288,11.62 ,Provision of IT Peripherals and individually ordered software and equipment
Ministry of Justice,MoJ HQ,31/05/16,265000-IT & Telecommunications,OZ501-HRD Feeder,ATOS IT SERVICES UK LTD,2025288,57.81 ,Provision of IT Peripherals and individually ordered software and equipment
Ministry of Justice,MoJ HQ,31/05/16,265000-IT & Telecommunications,OZ501-HRD Feeder,ATOS IT SERVICES UK LTD,2025288,25.89 ,Provision of IT Peripherals and individually ordered software and equipment
Ministry of Justice,MoJ HQ,31/05/16,265000-IT & Telecommunications,OZ501-HRD Feeder,ATOS IT SERVICES UK LTD,2025288,15.39 ,Provision of IT Peripherals and individually ordered software and equipment
Ministry of Justice,MoJ HQ,31/05/16,265000-IT & Telecommunications,NZ900-Finance & Corporate Services,ATOS IT SERVICES UK LTD,2025288,66.86 ,Provision of IT Peripherals and individually ordered software and equipment
Ministry of Justice,MoJ HQ,31/05/16,265000-IT & Telecommunications,NZ900-Finance & Corporate Services,ATOS IT SERVICES UK LTD,2025288,"1,398.30 ",Powerdown Request where attendance of on site engineer is required 
Ministry of Justice,MoJ HQ,31/05/16,265000-IT & Telecommunications,NZ900-Finance & Corporate Services,ATOS IT SERVICES UK LTD,2025288,"1,398.30 ",Powerdown Request where attendance of on site engineer is required 
Ministry of Justice,MoJ HQ,31/05/16,265000-IT & Telecommunications,NZ900-Finance & Corporate Services,ATOS IT SERVICES UK LTD,2025288,"1,398.30 ",Powerdown Request where attendance of on site engineer is required 
Ministry of Justice,MoJ HQ,31/05/16,265000-IT & Telecommunications,NZ900-Finance & Corporate Services,ATOS IT SERVICES UK LTD,2025288,"1,398.30 ",Powerdown Request where attendance of on site engineer is required 
Ministry of Justice,MoJ HQ,31/05/16,265000-IT & Telecommunications,NZ900-Finance & Corporate Services,ATOS IT SERVICES UK LTD,2025288,859.37 ,Powerdown Request where attendance of on site engineer is required 
Ministry of Justice,MoJ HQ,31/05/16,265000-IT & Telecommunications,NZ900-Finance & Corporate Services,ATOS IT SERVICES UK LTD,2025288,859.37 ,Powerdown Request where attendance of on site engineer is required 
Ministry of Justice,MoJ HQ,31/05/16,265000-IT & Telecommunications,NZ900-Finance & Corporate Services,ATOS IT SERVICES UK LTD,2025288,859.37 ,Powerdown Request where attendance of on site engineer is required 
Ministry of Justice,MoJ HQ,31/05/16,265000-IT & Telecommunications,NZ900-Finance & Corporate Services,ATOS IT SERVICES UK LTD,2025288,859.37 ,Powerdown Request where attendance of on site engineer is required 
Ministry of Justice,MoJ HQ,31/05/16,265000-IT & Telecommunications,NZ900-Finance & Corporate Services,ATOS IT SERVICES UK LTD,2025288,859.37 ,Powerdown Request where attendance of on site engineer is required 
Ministry of Justice,MoJ HQ,31/05/16,265000-IT & Telecommunications,NZ900-Finance & Corporate Services,ATOS IT SERVICES UK LTD,2025288,859.37 ,Powerdown Request where attendance of on site engineer is required 
Ministry of Justice,MoJ HQ,31/05/16,265000-IT & Telecommunications,NZ900-Finance & Corporate Services,ATOS IT SERVICES UK LTD,2025288,859.37 ,Powerdown Request where attendance of on site engineer is required 
Ministry of Justice,MoJ HQ,31/05/16,265000-IT & Telecommunications,NZ900-Finance & Corporate Services,ATOS IT SERVICES UK LTD,2025288,859.37 ,Powerdown Request where attendance of on site engineer is required 
Ministry of Justice,MoJ HQ,31/05/16,265000-IT & Telecommunications,NZ900-Finance & Corporate Services,ATOS IT SERVICES UK LTD,2025288,265.63 ,Provision of IT Peripherals and individually ordered software and equipment
Ministry of Justice,MoJ HQ,31/05/16,265000-IT & Telecommunications,NZ900-Finance & Corporate Services,ATOS IT SERVICES UK LTD,2025288,257.50 ,Provision of IT Peripherals and individually ordered software and equipment
Ministry of Justice,MoJ HQ,31/05/16,265000-IT & Telecommunications,NZ900-Finance & Corporate Services,ATOS IT SERVICES UK LTD,2025288,164.00 ,Provision of IT Peripherals and individually ordered software and equipment
Ministry of Justice,MoJ HQ,31/05/16,265000-IT & Telecommunications,NZ900-Finance & Corporate Services,ATOS IT SERVICES UK LTD,2025288,164.00 ,Provision of IT Peripherals and individually ordered software and equipment
Ministry of Justice,MoJ HQ,31/05/16,265000-IT & Telecommunications,NZ900-Finance & Corporate Services,ATOS IT SERVICES UK LTD,2025288,"27,869.25 ",Future IT Sourcing for exit and Transition costs
Ministry of Justice,MoJ HQ,31/05/16,265000-IT & Telecommunications,NZ900-Finance & Corporate Services,ATOS IT SERVICES UK LTD,2025288,"1,398.30 ",Powerdown Request where attendance of on site engineer is required 
Ministry of Justice,MoJ HQ,31/05/16,265000-IT & Telecommunications,NZ900-Finance & Corporate Services,ATOS IT SERVICES UK LTD,2025288,283.58 ,Provision of IT Peripherals and individually ordered software and equipment
Ministry of Justice,MoJ HQ,31/05/16,265000-IT & Telecommunications,NZ900-Finance & Corporate Services,ATOS IT SERVICES UK LTD,2025288,168.02 ,Provision of IT Peripherals and individually ordered software and equipment
Ministry of Justice,MoJ HQ,31/05/16,265000-IT & Telecommunications,NZ900-Finance & Corporate Services,ATOS IT SERVICES UK LTD,2025288,83.96 ,Provision of IT Peripherals and individually ordered software and equipment
Ministry of Justice,MoJ HQ,31/05/16,265000-IT & Telecommunications,NZ900-Finance & Corporate Services,ATOS IT SERVICES UK LTD,2025288,46.00 ,Provision of IT Peripherals and individually ordered software and equipment
Ministry of Justice,MoJ HQ,31/05/16,265000-IT & Telecommunications,NZ900-Finance & Corporate Services,ATOS IT SERVICES UK LTD,2025288,40.95 ,Provision of IT Peripherals and individually ordered software and equipment
Ministry of Justice,MoJ HQ,31/05/16,265000-IT & Telecommunications,NZ900-Finance & Corporate Services,ATOS IT SERVICES UK LTD,2025288,28.84 ,Provision of IT Peripherals and individually ordered software and equipment
Ministry of Justice,MoJ HQ,31/05/16,265000-IT & Telecommunications,NZ900-Finance & Corporate Services,ATOS IT SERVICES UK LTD,2025288,17.15 ,Provision of IT Peripherals and individually ordered software and equipment
Ministry of Justice,MoJ HQ,31/05/16,265000-IT & Telecommunications,NZ900-Finance & Corporate Services,ATOS IT SERVICES UK LTD,2025288,15.14 ,Provision of IT Peripherals and individually ordered software and equipment
Ministry of Justice,MoJ HQ,31/05/16,265000-IT & Telecommunications,NZ900-Finance & Corporate Services,ATOS IT SERVICES UK LTD,2025288,12.98 ,Provision of IT Peripherals and individually ordered software and equipment
Ministry of Justice,MoJ HQ,31/05/16,265000-IT & Telecommunications,NZ900-Finance & Corporate Services,ATOS IT SERVICES UK LTD,2025288,11.62 ,Provision of IT Peripherals and individually ordered software and equipment
Ministry of Justice,MoJ HQ,31/05/16,265000-IT & Telecommunications,NZ900-Finance & Corporate Services,ATOS IT SERVICES UK LTD,2025288,11.62 ,Provision of IT Peripherals and individually ordered software and equipment
Ministry of Justice,MoJ HQ,31/05/16,265000-IT & Telecommunications,NZ900-Finance & Corporate Services,ATOS IT SERVICES UK LTD,2025288,11.62 ,Provision of IT Peripherals and individually ordered software and equipment
Ministry of Justice,MoJ HQ,31/05/16,265000-IT & Telecommunications,NZ900-Finance & Corporate Services,ATOS IT SERVICES UK LTD,2025288,11.62 ,Provision of IT Peripherals and individually ordered software and equipment
Ministry of Justice,MoJ HQ,31/05/16,265000-IT & Telecommunications,NZ900-Finance & Corporate Services,ATOS IT SERVICES UK LTD,2025288,11.17 ,Provision of IT Peripherals and individually ordered software and equipment
Ministry of Justice,MoJ HQ,31/05/16,265000-IT & Telecommunications,NZ900-Finance & Corporate Services,ATOS IT SERVICES UK LTD,2025288,11.17 ,Provision of IT Peripherals and individually ordered software and equipment
Ministry of Justice,MoJ HQ,31/05/16,265000-IT & Telecommunications,NZ900-Finance & Corporate Services,ATOS IT SERVICES UK LTD,2025288,11.17 ,Provision of IT Peripherals and individually ordered software and equipment
Ministry of Justice,MoJ HQ,31/05/16,265000-IT & Telecommunications,NZ900-Finance & Corporate Services,ATOS IT SERVICES UK LTD,2025288,10.09 ,Provision of IT Peripherals and individually ordered software and equipment
Ministry of Justice,MoJ HQ,31/05/16,265000-IT & Telecommunications,NZ900-Finance & Corporate Services,ATOS IT SERVICES UK LTD,2025288,8.63 ,Provision of IT Peripherals and individually ordered software and equipment
Ministry of Justice,MoJ HQ,31/05/16,265000-IT & Telecommunications,NZ900-Finance & Corporate Services,ATOS IT SERVICES UK LTD,2025288,8.63 ,Provision of IT Peripherals and individually ordered software and equipment
Ministry of Justice,MoJ HQ,31/05/16,265000-IT & Telecommunications,NZ900-Finance & Corporate Services,ATOS IT SERVICES UK LTD,2025288,6.93 ,Provision of IT Peripherals and individually ordered software and equipment
Ministry of Justice,MoJ HQ,31/05/16,265000-IT & Telecommunications,NZ900-Finance & Corporate Services,ATOS IT SERVICES UK LTD,2025288,111.45 ,Provision of IT Peripherals and individually ordered software and equipment
Ministry of Justice,MoJ HQ,31/05/16,265000-IT & Telecommunications,NZ900-Finance & Corporate Services,ATOS IT SERVICES UK LTD,2025288,78.26 ,Provision of IT Peripherals and individually ordered software and equipment
Ministry of Justice,MoJ HQ,31/05/16,265000-IT & Telecommunications,NZ900-Finance & Corporate Services,ATOS IT SERVICES UK LTD,2025288,78.26 ,Provision of IT Peripherals and individually ordered software and equipment
Ministry of Justice,MoJ HQ,31/05/16,265000-IT & Telecommunications,NZ900-Finance & Corporate Services,ATOS IT SERVICES UK LTD,2025288,46.00 ,Provision of IT Peripherals and individually ordered software and equipment
Ministry of Justice,MoJ HQ,31/05/16,265000-IT & Telecommunications,NZ900-Finance & Corporate Services,ATOS IT SERVICES UK LTD,2025288,46.00 ,Provision of IT Peripherals and individually ordered software and equipment
Ministry of Justice,MoJ HQ,31/05/16,265000-IT & Telecommunications,NZ900-Finance & Corporate Services,ATOS IT SERVICES UK LTD,2025288,46.00 ,Provision of IT Peripherals and individually ordered software and equipment
Ministry of Justice,MoJ HQ,31/05/16,265000-IT & Telecommunications,NZ900-Finance & Corporate Services,ATOS IT SERVICES UK LTD,2025288,890.82 ,Provision of IT Peripherals and individually ordered software and equipment
Ministry of Justice,MoJ HQ,31/05/16,265000-IT & Telecommunications,NZ900-Finance & Corporate Services,ATOS IT SERVICES UK LTD,2025288,25.78 ,Provision of IT Peripherals and individually ordered software and equipment
Ministry of Justice,MoJ HQ,31/05/16,265000-IT & Telecommunications,NZ900-Finance & Corporate Services,ATOS IT SERVICES UK LTD,2025288,46.00 ,Provision of IT Peripherals and individually ordered software and equipment
Ministry of Justice,MoJ HQ,31/05/16,265000-IT & Telecommunications,NZ900-Finance & Corporate Services,ATOS IT SERVICES UK LTD,2025288,"2,496.96 ",Charges related to Local Relocation of OPG devices
Ministry of Justice,MoJ HQ,31/05/16,265000-IT & Telecommunications,NZ900-Finance & Corporate Services,ATOS IT SERVICES UK LTD,2025288,890.82 ,Provision of IT Peripherals and individually ordered software and equipment
Ministry of Justice,MoJ HQ,31/05/16,265000-IT & Telecommunications,NZ900-Finance & Corporate Services,ATOS IT SERVICES UK LTD,2025288,890.82 ,Provision of IT Peripherals and individually ordered software and equipment
Ministry of Justice,MoJ HQ,31/05/16,265000-IT & Telecommunications,NZ900-Finance & Corporate Services,ATOS IT SERVICES UK LTD,2025288,890.82 ,Provision of IT Peripherals and individually ordered software and equipment
Ministry of Justice,MoJ HQ,31/05/16,265000-IT & Telecommunications,NZ900-Finance & Corporate Services,ATOS IT SERVICES UK LTD,2025288,832.32 ,Charges related to Local Relocation of OPG devices
Ministry of Justice,MoJ HQ,31/05/16,265000-IT & Telecommunications,NZ900-Finance & Corporate Services,ATOS IT SERVICES UK LTD,2025288,482.72 ,Provision of IT Peripherals and individually ordered software and equipment
Ministry of Justice,MoJ HQ,31/05/16,265000-IT & Telecommunications,NZ900-Finance & Corporate Services,ATOS IT SERVICES UK LTD,2025288,309.36 ,Provision of IT Peripherals and individually ordered software and equipment
Ministry of Justice,MoJ HQ,31/05/16,265000-IT & Telecommunications,NZ900-Finance & Corporate Services,ATOS IT SERVICES UK LTD,2025288,154.68 ,Provision of IT Peripherals and individually ordered software and equipment
Ministry of Justice,MoJ HQ,31/05/16,265000-IT & Telecommunications,NZ900-Finance & Corporate Services,ATOS IT SERVICES UK LTD,2025288,86.75 ,Provision of IT Peripherals and individually ordered software and equipment
Ministry of Justice,MoJ HQ,31/05/16,265000-IT & Telecommunications,NZ900-Finance & Corporate Services,ATOS IT SERVICES UK LTD,2025288,82.78 ,Provision of IT Peripherals and individually ordered software and equipment
Ministry of Justice,MoJ HQ,31/05/16,265000-IT & Telecommunications,NZ900-Finance & Corporate Services,ATOS IT SERVICES UK LTD,2025288,78.26 ,Provision of IT Peripherals and individually ordered software and equipment
Ministry of Justice,MoJ HQ,31/05/16,265000-IT & Telecommunications,NZ900-Finance & Corporate Services,ATOS IT SERVICES UK LTD,2025288,67.31 ,Provision of IT Peripherals and individually ordered software and equipment
Ministry of Justice,MoJ HQ,31/05/16,265000-IT & Telecommunications,NZ900-Finance & Corporate Services,ATOS IT SERVICES UK LTD,2025288,66.86 ,Provision of IT Peripherals and individually ordered software and equipment
Ministry of Justice,MoJ HQ,31/05/16,265000-IT & Telecommunications,NZ900-Finance & Corporate Services,ATOS IT SERVICES UK LTD,2025288,66.86 ,Provision of IT Peripherals and individually ordered software and equipment
Ministry of Justice,MoJ HQ,31/05/16,265000-IT & Telecommunications,NZ900-Finance & Corporate Services,ATOS IT SERVICES UK LTD,2025288,66.86 ,Provision of IT Peripherals and individually ordered software and equipment
Ministry of Justice,MoJ HQ,31/05/16,265000-IT & Telecommunications,NZ900-Finance & Corporate Services,ATOS IT SERVICES UK LTD,2025288,66.86 ,Provision of IT Peripherals and individually ordered software and equipment
Ministry of Justice,MoJ HQ,31/05/16,265000-IT & Telecommunications,NZ900-Finance & Corporate Services,ATOS IT SERVICES UK LTD,2025288,51.56 ,Provision of IT Peripherals and individually ordered software and equipment
Ministry of Justice,MoJ HQ,31/05/16,265000-IT & Telecommunications,NZ900-Finance & Corporate Services,ATOS IT SERVICES UK LTD,2025288,46.00 ,Provision of IT Peripherals and individually ordered software and equipment
Ministry of Justice,MoJ HQ,31/05/16,265000-IT & Telecommunications,NZ900-Finance & Corporate Services,ATOS IT SERVICES UK LTD,2025288,46.00 ,Provision of IT Peripherals and individually ordered software and equipment
Ministry of Justice,MoJ HQ,31/05/16,265000-IT & Telecommunications,NZ900-Finance & Corporate Services,ATOS IT SERVICES UK LTD,2025288,46.00 ,Provision of IT Peripherals and individually ordered software and equipment
Ministry of Justice,MoJ HQ,31/05/16,265000-IT & Telecommunications,NZ900-Finance & Corporate Services,ATOS IT SERVICES UK LTD,2025288,46.00 ,Provision of IT Peripherals and individually ordered software and equipment
Ministry of Justice,MoJ HQ,31/05/16,265000-IT & Telecommunications,NZ900-Finance & Corporate Services,ATOS IT SERVICES UK LTD,2025288,46.00 ,Provision of IT Peripherals and individually ordered software and equipment
Ministry of Justice,MoJ HQ,31/05/16,265000-IT & Telecommunications,NZ900-Finance & Corporate Services,ATOS IT SERVICES UK LTD,2025288,25.95 ,Provision of IT Peripherals and individually ordered software and equipment
Ministry of Justice,MoJ HQ,31/05/16,265000-IT & Telecommunications,NZ900-Finance & Corporate Services,ATOS IT SERVICES UK LTD,2025288,25.78 ,Provision of IT Peripherals and individually ordered software and equipment
Ministry of Justice,MoJ HQ,31/05/16,265000-IT & Telecommunications,NZ900-Finance & Corporate Services,ATOS IT SERVICES UK LTD,2025288,25.78 ,Provision of IT Peripherals and individually ordered software and equipment
Ministry of Justice,MoJ HQ,31/05/16,265000-IT & Telecommunications,NZ900-Finance & Corporate Services,ATOS IT SERVICES UK LTD,2025288,25.78 ,Provision of IT Peripherals and individually ordered software and equipment
Ministry of Justice,MoJ HQ,31/05/16,265000-IT & Telecommunications,NZ900-Finance & Corporate Services,ATOS IT SERVICES UK LTD,2025288,25.78 ,Provision of IT Peripherals and individually ordered software and equipment
Ministry of Justice,MoJ HQ,31/05/16,265000-IT & Telecommunications,NZ900-Finance & Corporate Services,ATOS IT SERVICES UK LTD,2025288,25.78 ,Provision of IT Peripherals and individually ordered software and equipment
Ministry of Justice,MoJ HQ,31/05/16,265000-IT & Telecommunications,NZ900-Finance & Corporate Services,ATOS IT SERVICES UK LTD,2025288,25.78 ,Provision of IT Peripherals and individually ordered software and equipment
Ministry of Justice,MoJ HQ,31/05/16,265000-IT & Telecommunications,NZ900-Finance & Corporate Services,ATOS IT SERVICES UK LTD,2025288,25.78 ,Provision of IT Peripherals and individually ordered software and equipment
Ministry of Justice,MoJ HQ,31/05/16,265000-IT & Telecommunications,NZ900-Finance & Corporate Services,ATOS IT SERVICES UK LTD,2025288,25.78 ,Provision of IT Peripherals and individually ordered software and equipment
Ministry of Justice,MoJ HQ,31/05/16,265000-IT & Telecommunications,NZ900-Finance & Corporate Services,ATOS IT SERVICES UK LTD,2025288,11.17 ,Provision of IT Peripherals and individually ordered software and equipment
Ministry of Justice,MoJ HQ,31/05/16,265000-IT & Telecommunications,NZ900-Finance & Corporate Services,ATOS IT SERVICES UK LTD,2025288,10.92 ,Provision of IT Peripherals and individually ordered software and equipment
Ministry of Justice,MoJ HQ,31/05/16,265000-IT & Telecommunications,NZ900-Finance & Corporate Services,ATOS IT SERVICES UK LTD,2025288,8.63 ,Provision of IT Peripherals and individually ordered software and equipment
Ministry of Justice,MoJ HQ,31/05/16,265000-IT & Telecommunications,NZ900-Finance & Corporate Services,ATOS IT SERVICES UK LTD,2025288,5.00 ,Provision of IT Peripherals and individually ordered software and equipment
Ministry of Justice,MoJ HQ,31/05/16,265000-IT & Telecommunications,NZ900-Finance & Corporate Services,ATOS IT SERVICES UK LTD,2025288,"2,859.02 ",Cost of Site Engineer's assistance in relation to a powerdown
Ministry of Justice,MoJ HQ,31/05/16,265000-IT & Telecommunications,NZ900-Finance & Corporate Services,ATOS IT SERVICES UK LTD,2025288,"1,589.73 ",Cost of Site Engineer's assistance in relation to a powerdown
Ministry of Justice,MoJ HQ,31/05/16,265000-IT & Telecommunications,NZ900-Finance & Corporate Services,ATOS IT SERVICES UK LTD,2025288,"1,398.30 ",Cost of Site Engineer's assistance in relation to a powerdown
Ministry of Justice,MoJ HQ,31/05/16,265000-IT & Telecommunications,NZ900-Finance & Corporate Services,ATOS IT SERVICES UK LTD,2025288,"1,398.30 ",Cost of Site Engineer's assistance in relation to a powerdown
Ministry of Justice,MoJ HQ,31/05/16,265000-IT & Telecommunications,NZ900-Finance & Corporate Services,ATOS IT SERVICES UK LTD,2025288,"1,398.30 ",Cost of Site Engineer's assistance in relation to a powerdown
Ministry of Justice,MoJ HQ,31/05/16,265000-IT & Telecommunications,NZ900-Finance & Corporate Services,ATOS IT SERVICES UK LTD,2025288,"1,398.30 ",Cost of Site Engineer's assistance in relation to a powerdown
Ministry of Justice,MoJ HQ,31/05/16,265000-IT & Telecommunications,NZ900-Finance & Corporate Services,ATOS IT SERVICES UK LTD,2025288,"1,398.30 ",Cost of Site Engineer's assistance in relation to a powerdown
Ministry of Justice,MoJ HQ,31/05/16,265000-IT & Telecommunications,NZ900-Finance & Corporate Services,ATOS IT SERVICES UK LTD,2025288,"1,398.30 ",Cost of Site Engineer's assistance in relation to a powerdown
Ministry of Justice,MoJ HQ,31/05/16,265000-IT & Telecommunications,NZ900-Finance & Corporate Services,ATOS IT SERVICES UK LTD,2025288,"1,398.30 ",Cost of Site Engineer's assistance in relation to a powerdown
Ministry of Justice,MoJ HQ,31/05/16,265000-IT & Telecommunications,NZ900-Finance & Corporate Services,ATOS IT SERVICES UK LTD,2025288,"1,398.30 ",Cost of Site Engineer's assistance in relation to a powerdown
Ministry of Justice,MoJ HQ,31/05/16,265000-IT & Telecommunications,NZ900-Finance & Corporate Services,ATOS IT SERVICES UK LTD,2025288,"1,398.30 ",Cost of Site Engineer's assistance in relation to a powerdown
Ministry of Justice,MoJ HQ,31/05/16,265000-IT & Telecommunications,NZ900-Finance & Corporate Services,ATOS IT SERVICES UK LTD,2025288,859.37 ,Cost of Site Engineer's assistance in relation to a powerdown
Ministry of Justice,MoJ HQ,31/05/16,265000-IT & Telecommunications,NZ900-Finance & Corporate Services,ATOS IT SERVICES UK LTD,2025288,859.37 ,Cost of Site Engineer's assistance in relation to a powerdown
Ministry of Justice,MoJ HQ,31/05/16,265000-IT & Telecommunications,NZ900-Finance & Corporate Services,ATOS IT SERVICES UK LTD,2025288,859.37 ,Cost of Site Engineer's assistance in relation to a powerdown
Ministry of Justice,MoJ HQ,31/05/16,265000-IT & Telecommunications,NZ900-Finance & Corporate Services,ATOS IT SERVICES UK LTD,2025288,859.37 ,Cost of Site Engineer's assistance in relation to a powerdown
Ministry of Justice,MoJ HQ,31/05/16,265000-IT & Telecommunications,NZ900-Finance & Corporate Services,ATOS IT SERVICES UK LTD,2025288,859.37 ,Cost of Site Engineer's assistance in relation to a powerdown
Ministry of Justice,MoJ HQ,31/05/16,265000-IT & Telecommunications,NZ900-Finance & Corporate Services,ATOS IT SERVICES UK LTD,2025288,859.37 ,Cost of Site Engineer's assistance in relation to a powerdown
Ministry of Justice,MoJ HQ,31/05/16,265000-IT & Telecommunications,NZ900-Finance & Corporate Services,ATOS IT SERVICES UK LTD,2025288,859.37 ,Cost of Site Engineer's assistance in relation to a powerdown
Ministry of Justice,MoJ HQ,31/05/16,265000-IT & Telecommunications,NZ900-Finance & Corporate Services,ATOS IT SERVICES UK LTD,2025288,859.37 ,Cost of Site Engineer's assistance in relation to a powerdown
Ministry of Justice,MoJ HQ,31/05/16,265000-IT & Telecommunications,NZ900-Finance & Corporate Services,ATOS IT SERVICES UK LTD,2025288,859.37 ,Cost of Site Engineer's assistance in relation to a powerdown
Ministry of Justice,MoJ HQ,31/05/16,265000-IT & Telecommunications,NZ900-Finance & Corporate Services,ATOS IT SERVICES UK LTD,2025288,859.37 ,Cost of Site Engineer's assistance in relation to a powerdown
Ministry of Justice,MoJ HQ,31/05/16,265000-IT & Telecommunications,NZ900-Finance & Corporate Services,ATOS IT SERVICES UK LTD,2025288,859.37 ,Cost of Site Engineer's assistance in relation to a powerdown
Ministry of Justice,MoJ HQ,31/05/16,265000-IT & Telecommunications,NZ900-Finance & Corporate Services,ATOS IT SERVICES UK LTD,2025288,859.37 ,Cost of Site Engineer's assistance in relation to a powerdown
Ministry of Justice,MoJ HQ,31/05/16,265000-IT & Telecommunications,NZ900-Finance & Corporate Services,ATOS IT SERVICES UK LTD,2025288,859.37 ,Cost of Site Engineer's assistance in relation to a powerdown
Ministry of Justice,MoJ HQ,31/05/16,265000-IT & Telecommunications,NZ900-Finance & Corporate Services,ATOS IT SERVICES UK LTD,2025288,859.37 ,Cost of Site Engineer's assistance in relation to a powerdown
Ministry of Justice,MoJ HQ,31/05/16,265000-IT & Telecommunications,NZ900-Finance & Corporate Services,ATOS IT SERVICES UK LTD,2025288,859.37 ,Cost of Site Engineer's assistance in relation to a powerdown
Ministry of Justice,MoJ HQ,31/05/16,265000-IT & Telecommunications,NZ900-Finance & Corporate Services,ATOS IT SERVICES UK LTD,2025288,859.37 ,Cost of Site Engineer's assistance in relation to a powerdown
Ministry of Justice,MoJ HQ,31/05/16,265000-IT & Telecommunications,NZ900-Finance & Corporate Services,ATOS IT SERVICES UK LTD,2025288,859.37 ,Cost of Site Engineer's assistance in relation to a powerdown
Ministry of Justice,MoJ HQ,31/05/16,265000-IT & Telecommunications,NZ900-Finance & Corporate Services,ATOS IT SERVICES UK LTD,2025288,859.37 ,Cost of Site Engineer's assistance in relation to a powerdown
Ministry of Justice,MoJ HQ,31/05/16,265000-IT & Telecommunications,NZ401-Finance Group Feeder,ATOS IT SERVICES UK LTD,2025288,"3,415.75 ",Provision of IT peripherals and individually ordered software and equipment
Ministry of Justice,MoJ HQ,31/05/16,265000-IT & Telecommunications,LZ600-Transforming Justice,ATOS IT SERVICES UK LTD,2025288,154.68 ,Provision of IT Peripherals and individually ordered software and equipment
Ministry of Justice,MoJ HQ,31/05/16,265000-IT & Telecommunications,LZ600-Transforming Justice,ATOS IT SERVICES UK LTD,2025288,25.78 ,Provision of IT Peripherals and individually ordered software and equipment
Ministry of Justice,MoJ HQ,31/05/16,265000-IT & Telecommunications,LZ600-Transforming Justice,ATOS IT SERVICES UK LTD,2025288,25.78 ,Provision of IT Peripherals and individually ordered software and equipment
Ministry of Justice,MoJ HQ,31/05/16,265000-IT & Telecommunications,RZ500-Arms Length Bodies (JPG),ATOS IT SERVICES UK LTD,2025288,78.26 ,Reassignment of blackberry phone from departed staff member to new arrival
Ministry of Justice,MoJ HQ,31/05/16,265000-IT & Telecommunications,RZ500-Arms Length Bodies (JPG),ATOS IT SERVICES UK LTD,2025288,28.84 ,Provision of Laptop Power Cable for staff member
Ministry of Justice,MoJ HQ,31/05/16,265000-IT & Telecommunications,RZ500-Arms Length Bodies (JPG),ATOS IT SERVICES UK LTD,2025288,28.84 ,Provision of Laptop Power Cable for staff member
Ministry of Justice,MoJ HQ,31/05/16,265000-IT & Telecommunications,RZ500-Arms Length Bodies (JPG),ATOS IT SERVICES UK LTD,2025288,28.84 ,Provision of Laptop Power Cable for staff member
Ministry of Justice,MoJ HQ,31/05/16,265000-IT & Telecommunications,RZ500-Arms Length Bodies (JPG),ATOS IT SERVICES UK LTD,2025288,25.78 ,Transfer of phone extension number from departed staff member to new arrival
Ministry of Justice,MoJ HQ,31/05/16,265000-IT & Telecommunications,RZ500-Arms Length Bodies (JPG),ATOS IT SERVICES UK LTD,2025288,11.62 ,Old Letterheaded paper template removal 
Ministry of Justice,MoJ HQ,31/05/16,265000-IT & Telecommunications,RG999-CFLAP Accumulator,ATOS IT SERVICES UK LTD,2025288,25.78 ,Provision of IT Peripherals and individually ordered software and equipment
Ministry of Justice,MoJ HQ,31/05/16,265000-IT & Telecommunications,RG999-CFLAP Accumulator,ATOS IT SERVICES UK LTD,2025288,78.26 ,Provision of IT Peripherals and individually ordered software and equipment
Ministry of Justice,MoJ HQ,31/05/16,265000-IT & Telecommunications,RG999-CFLAP Accumulator,ATOS IT SERVICES UK LTD,2025288,66.86 ,Provision of IT Peripherals and individually ordered software and equipment
Ministry of Justice,MoJ HQ,31/05/16,265000-IT & Telecommunications,RG999-CFLAP Accumulator,ATOS IT SERVICES UK LTD,2025288,25.78 ,Provision of IT Peripherals and individually ordered software and equipment
Ministry of Justice,MoJ HQ,31/05/16,265000-IT & Telecommunications,RG999-CFLAP Accumulator,ATOS IT SERVICES UK LTD,2025288,8.63 ,Provision of IT Peripherals and individually ordered software and equipment
Ministry of Justice,MoJ HQ,31/05/16,265000-IT & Telecommunications,RG999-CFLAP Accumulator,ATOS IT SERVICES UK LTD,2025288,82.78 ,Provision of IT Peripherals and individually ordered software and equipment
Ministry of Justice,MoJ HQ,31/05/16,265000-IT & Telecommunications,MF600-Directorate of Judicial Offices,ATOS IT SERVICES UK LTD,2025288,82.78 ,Provision of IT Peripherals and individually ordered software and equipment
Ministry of Justice,MoJ HQ,31/05/16,265000-IT & Telecommunications,MF600-Directorate of Judicial Offices,ATOS IT SERVICES UK LTD,2025288,66.86 ,Provision of IT Peripherals and individually ordered software and equipment
Ministry of Justice,MoJ HQ,31/05/16,265000-IT & Telecommunications,MF600-Directorate of Judicial Offices,ATOS IT SERVICES UK LTD,2025288,46.00 ,Provision of IT Peripherals and individually ordered software and equipment
Ministry of Justice,MoJ HQ,31/05/16,265000-IT & Telecommunications,MF600-Directorate of Judicial Offices,ATOS IT SERVICES UK LTD,2025288,25.78 ,Provision of IT Peripherals and individually ordered software and equipment
Ministry of Justice,MoJ HQ,31/05/16,265000-IT & Telecommunications,MF600-Directorate of Judicial Offices,ATOS IT SERVICES UK LTD,2025288,25.78 ,Provision of IT Peripherals and individually ordered software and equipment
Ministry of Justice,MoJ HQ,31/05/16,265000-IT & Telecommunications,MF600-Directorate of Judicial Offices,ATOS IT SERVICES UK LTD,2025288,11.62 ,Provision of IT Peripherals and individually ordered software and equipment
Ministry of Justice,MoJ HQ,31/05/16,265000-IT & Telecommunications,MF600-Directorate of Judicial Offices,ATOS IT SERVICES UK LTD,2025288,11.17 ,Provision of IT Peripherals and individually ordered software and equipment
Ministry of Justice,MoJ HQ,31/05/16,265000-IT & Telecommunications,RB999-JPG - CJRD,ATOS IT SERVICES UK LTD,2025288,890.82 ,Provision of IT Peripherals and individually ordered software and equipment
Ministry of Justice,MoJ HQ,31/05/16,265000-IT & Telecommunications,"RD999-CJG - DGs Office, BDSU, Inspectorates & Ombudsman",ATOS IT SERVICES UK LTD,2025288,258.33 ,Provision of IT Peripherals and individually ordered software and equipment
Ministry of Justice,MoJ HQ,31/05/16,265000-IT & Telecommunications,"RD999-CJG - DGs Office, BDSU, Inspectorates & Ombudsman",ATOS IT SERVICES UK LTD,2025288,258.33 ,Provision of IT Peripherals and individually ordered software and equipment
Ministry of Justice,MoJ HQ,31/05/16,265000-IT & Telecommunications,"RD999-CJG - DGs Office, BDSU, Inspectorates & Ombudsman",ATOS IT SERVICES UK LTD,2025288,258.33 ,Provision of IT Peripherals and individually ordered software and equipment
Ministry of Justice,MoJ HQ,31/05/16,265000-IT & Telecommunications,"RD999-CJG - DGs Office, BDSU, Inspectorates & Ombudsman",ATOS IT SERVICES UK LTD,2025288,164.00 ,Provision of IT Peripherals and individually ordered software and equipment
Ministry of Justice,MoJ HQ,31/05/16,265000-IT & Telecommunications,"RD999-CJG - DGs Office, BDSU, Inspectorates & Ombudsman",ATOS IT SERVICES UK LTD,2025288,164.00 ,Provision of IT Peripherals and individually ordered software and equipment
Ministry of Justice,MoJ HQ,31/05/16,265000-IT & Telecommunications,"RD999-CJG - DGs Office, BDSU, Inspectorates & Ombudsman",ATOS IT SERVICES UK LTD,2025288,150.12 ,Provision of IT Peripherals and individually ordered software and equipment
Ministry of Justice,MoJ HQ,31/05/16,265000-IT & Telecommunications,"RD999-CJG - DGs Office, BDSU, Inspectorates & Ombudsman",ATOS IT SERVICES UK LTD,2025288,150.12 ,Provision of IT Peripherals and individually ordered software and equipment
Ministry of Justice,MoJ HQ,31/05/16,265000-IT & Telecommunications,"RD999-CJG - DGs Office, BDSU, Inspectorates & Ombudsman",ATOS IT SERVICES UK LTD,2025288,76.90 ,Provision of IT Peripherals and individually ordered software and equipment
Ministry of Justice,MoJ HQ,31/05/16,265000-IT & Telecommunications,LZ600-Transforming Justice,ATOS IT SERVICES UK LTD,2025288,66.86 ,Provision of IT Peripherals and individually ordered software and equipment
Ministry of Justice,MoJ HQ,31/05/16,265000-IT & Telecommunications,"RD999-CJG - DGs Office, BDSU, Inspectorates & Ombudsman",ATOS IT SERVICES UK LTD,2025288,66.86 ,Provision of IT Peripherals and individually ordered software and equipment
Ministry of Justice,MoJ HQ,31/05/16,265000-IT & Telecommunications,"RD999-CJG - DGs Office, BDSU, Inspectorates & Ombudsman",ATOS IT SERVICES UK LTD,2025288,46.22 ,Provision of IT Peripherals and individually ordered software and equipment
Ministry of Justice,MoJ HQ,31/05/16,265000-IT & Telecommunications,RB999-JPG - CJRD,ATOS IT SERVICES UK LTD,2025288,46.00 ,Provision of IT Peripherals and individually ordered software and equipment
Ministry of Justice,MoJ HQ,31/05/16,265000-IT & Telecommunications,"RD999-CJG - DGs Office, BDSU, Inspectorates & Ombudsman",ATOS IT SERVICES UK LTD,2025288,45.76 ,Provision of IT Peripherals and individually ordered software and equipment
Ministry of Justice,MoJ HQ,31/05/16,265000-IT & Telecommunications,"RD999-CJG - DGs Office, BDSU, Inspectorates & Ombudsman",ATOS IT SERVICES UK LTD,2025288,25.23 ,Provision of IT Peripherals and individually ordered software and equipment
Ministry of Justice,MoJ HQ,31/05/16,265000-IT & Telecommunications,"RD999-CJG - DGs Office, BDSU, Inspectorates & Ombudsman",ATOS IT SERVICES UK LTD,2025288,23.24 ,Provision of IT Peripherals and individually ordered software and equipment
Ministry of Justice,MoJ HQ,31/05/16,265000-IT & Telecommunications,RB999-JPG - CJRD,ATOS IT SERVICES UK LTD,2025288,19.27 ,Provision of IT Peripherals and individually ordered software and equipment
Ministry of Justice,MoJ HQ,31/05/16,265000-IT & Telecommunications,"RD999-CJG - DGs Office, BDSU, Inspectorates & Ombudsman",ATOS IT SERVICES UK LTD,2025288,14.48 ,Provision of IT Peripherals and individually ordered software and equipment
Ministry of Justice,MoJ HQ,31/05/16,265000-IT & Telecommunications,"RD999-CJG - DGs Office, BDSU, Inspectorates & Ombudsman",ATOS IT SERVICES UK LTD,2025288,11.62 ,Provision of IT Peripherals and individually ordered software and equipment
Ministry of Justice,MoJ HQ,31/05/16,265000-IT & Telecommunications,"RD999-CJG - DGs Office, BDSU, Inspectorates & Ombudsman",ATOS IT SERVICES UK LTD,2025288,11.62 ,Provision of IT Peripherals and individually ordered software and equipment
Ministry of Justice,MoJ HQ,31/05/16,265000-IT & Telecommunications,RB999-JPG - CJRD,ATOS IT SERVICES UK LTD,2025288,11.62 ,Provision of IT Peripherals and individually ordered software and equipment
Ministry of Justice,MoJ HQ,31/05/16,265000-IT & Telecommunications,RB999-JPG - CJRD,ATOS IT SERVICES UK LTD,2025288,11.62 ,Provision of IT Peripherals and individually ordered software and equipment
Ministry of Justice,MoJ HQ,31/05/16,265000-IT & Telecommunications,NZ900-Finance & Corporate Services,ATOS IT SERVICES UK LTD,2025289,"32,972.00 ",Future IT Sourcing costs for access to Service Knowledge Library Data
Ministry of Justice,MoJ HQ,31/05/16,265000-IT & Telecommunications,NZ900-Finance & Corporate Services,ATOS IT SERVICES UK LTD,2025289,"32,037.12 ",Future IT Sourcing for exit and Transition costs
Ministry of Justice,MoJ HQ,31/05/16,265000-IT & Telecommunications,NZ900-Finance & Corporate Services,ATOS IT SERVICES UK LTD,2025289,"25,362.72 ",Future IT Sourcing for exit and Transition costs
Ministry of Justice,MoJ HQ,31/05/16,512000-Intangible GBV - Additions,NZ900-Finance & Corporate Services,ATOS IT SERVICES UK LTD,2025289,"63,940.63 ",The Way We Work project
Ministry of Justice,MoJ HQ,31/05/16,512000-Intangible GBV - Additions,NZ900-Finance & Corporate Services,CAPGEMINI UK PLC,2025305,"41,508.00 ",Common Platform Programme - Archive Data 
Ministry of Justice,MoJ HQ,31/05/16,265000-IT & Telecommunications,NZ900-Finance & Corporate Services,CGI IT UK LTD,2025310,"44,864.00 ",Future IT Sourcing Transition costs
Ministry of Justice,MoJ HQ,31/05/16,265000-IT & Telecommunications,NZ900-Finance & Corporate Services,CGI IT UK LTD,2025310,"38,531.84 ",Exit and Transition  services
Ministry of Justice,MoJ HQ,31/05/16,512000-Intangible GBV - Additions,NZ900-Finance & Corporate Services,CGI IT UK LTD,2025310,"62,463.00 ",Common Platform Programme - Continuous Improvement
Ministry of Justice,MoJ HQ,31/05/16,265000-IT & Telecommunications,NZ900-Finance & Corporate Services,HEWLETT PACKARD ENTERPRISE SERVICES UK LTD,2025346,"1,284,185.59 ",Application Maintenance & support monthly service charges
Ministry of Justice,MoJ HQ,31/05/16,265000-IT & Telecommunications,NZ900-Finance & Corporate Services,HEWLETT PACKARD ENTERPRISE SERVICES UK LTD,2025346,"613,206.39 ",Monthly Hosting service charges
Ministry of Justice,MoJ HQ,31/05/16,265000-IT & Telecommunications,NZ900-Finance & Corporate Services,HEWLETT PACKARD ENTERPRISE SERVICES UK LTD,2025346,"405,285.77 ",Monthly General service charges
Ministry of Justice,MoJ HQ,31/05/16,265000-IT & Telecommunications,NZ900-Finance & Corporate Services,HEWLETT PACKARD ENTERPRISE SERVICES UK LTD,2025346,"401,341.00 ",Monthly Service Integration And Management service charges
Ministry of Justice,MoJ HQ,31/05/16,265000-IT & Telecommunications,NZ900-Finance & Corporate Services,HEWLETT PACKARD ENTERPRISE SERVICES UK LTD,2025346,"274,170.36 ",Monthly Service Integration And Management service charges
Ministry of Justice,MoJ HQ,31/05/16,265000-IT & Telecommunications,NZ900-Finance & Corporate Services,INFORMATION ASSURANCE CONSULTING SERVICES LLP(IACS),2025350,"37,050.00 ",Youth Justice Board Costs for Provision of Information Assurance Support
Ministry of Justice,MoJ HQ,31/05/16,265000-IT & Telecommunications,NZ900-Finance & Corporate Services,ORACLE CORPORATION U K LTD,2025391,"28,800.00 ", Offender Management National Infrastructure  - nDelius 
Ministry of Justice,MoJ HQ,31/05/16,224000-Staff travel and other,QY200-OU10 Billback,REDFERN TRAVEL LTD,2025400,"168,369.23 ",Provision of hotel & travel bookings utilised across MoJ
Ministry of Justice,MoJ HQ,31/05/16,263000-Other Contracted Out Services,RC999-Criminal Justice Group - OMS,SERCO LTD,2025404,"104,770.16 ",Serco providing escorting services for young people in custody.
Ministry of Justice,MoJ HQ,31/05/16,223000-Other Expenditure,NZ900-Finance & Corporate Services,SHARPE PRITCHARD LLP,2025406,"34,871.00 ",Legal costs in support of the Future IT Sourcing Programme
Ministry of Justice,MoJ HQ,31/05/16,263000-Other Contracted Out Services,NX900-MOJ Shared Services,SSCL (SHARED SERVICES CONNECTED LTD),2025412,"2,531,644.33 ",Service charges to Shared Services provider
Ministry of Justice,MoJ HQ,31/05/16,265000-IT & Telecommunications,NZ900-Finance & Corporate Services,VODAFONE LTD (RETAIL),2025428,"199,442.85 ",Criminal Justice Secure eMail Monthly Charge
